Workbook

Sheet Analysis (2)
M1: =PI()/180 -> 0.01745329252
A2: b2 | B2: -Z1 | D2: R1 | F2: -Z2 | H2: R2
A3: =A4*0.5 -> 273 | B3: =VLOOKUP(A3,Synthesis!$A$8:$L$728,5) -> -63.02029397 | C3: =VLOOKUP(A3,Synthesis!$A$8:$L$728,6) -> 185.6876656 | D3: =VLOOKUP($A$3,Synthesis!$A$8:$L$728,7) -> 195.0467248 | E3: =VLOOKUP($A$3,Synthesis!$A$8:$L$728,8) -> 230.309653 | F3: =VLOOKUP($A$3,Synthesis!$A$8:$L$728,9) -> 136.9654462 | G3: =VLOOKUP($A$3,Synthesis!$A$8:$L$728,10) -> -219.8637422 | H3: =VLOOKUP($A$3,Synthesis!$A$8:$L$728,11) -> 395.032465 | I3: =VLOOKUP($A$3,Synthesis!$A$8:$L$728,12) -> -175.2417547
A4: 546 | B4: 1 | S4: 50 | T4: 1
A5: =A6*0.5 -> 72 | B5: =VLOOKUP(A5,Synthesis!$A$8:$L$728,5) -> 390.3441403 | C5: =VLOOKUP(A5,Synthesis!$A$8:$L$728,6) -> -238.0451269 | D5: =VLOOKUP($A$5,Synthesis!$A$8:$L$728,7) -> 283.8868522 | E5: =VLOOKUP($A$5,Synthesis!$A$8:$L$728,8) -> 49.59306513 | F5: =VLOOKUP($A$5,Synthesis!$A$8:$L$728,9) -> -59.89849728 | G5: =VLOOKUP($A$5,Synthesis!$A$8:$L$728,10) -> -152.8940351 | H5: =VLOOKUP($A$5,Synthesis!$A$8:$L$728,11) -> -166.3557854 | I5: =VLOOKUP($A$5,Synthesis!$A$8:$L$728,12) -> 134.744157 | O5: f-pi()/2 | P5: =P6*180/PI()-90 -> 18.74663139 | T5: 0 | U5: =+S4 -> 50
A6: 144 | B6: 2 | M6: =360+M9 -> 554.811682 | O6: f | P6: =ATAN2(H12,I12) -> 1.897986768 | T6: 0 | U6: 0
D7: Selected Values | F7: Z | H7: R | K7: g3 | L7: =ACOS((L13^2+L9^2-L8^2)/(2*L9*L13)) -> 0.3179704859 | M7: =L7/D_R -> 18.21836685 | T7: =+S4 -> 50 | U7: 0
B8: -60.95365006 | F8: =IF($B$4=1,B3,F3) -> -63.02029397 | G8: =IF($B$4=1,C3,G3) -> 185.6876656 | H8: 195.0467248 | I8: 230.309653 | K8: c3 | L8: =SQRT(H13^2+I13^2) -> 164.2084527 | P8: =SQRT(O12^2+O12^2) -> 94.53967305
F9: =IF($B$6=1,B5,F5) -> -59.89849728 | G9: =IF($B$6=1,C5,G5) -> -152.8940351 | H9: -166.3557854 | I9: 134.744157 | K9: b3 | L9: =SQRT(H12^2+I12^2) -> 196.0904551 | M9: =360+M10 -> 194.811682 | T9: 2
H10: X | I10: Y | K10: alpha | L10: =ATAN2(H14-H11,I14-I11) -> -2.883080035 | M10: =M11/D_R -> -165.188318 | O10: X | P10: Y | T10: =+T11-S4*SIN([1]Synthesis!E8) -> 75 | U10: =+U11+S4*COS([1]Synthesis!E8) -> 243.3012702
G11: A0 | H11: =H8 -> 195.0467248 | I11: =I8 -> 230.309653 | K11: a1 | L11: =SQRT((H11-H14)^2+(I11-I14)^2) -> 373.8242079 | M11: =ATAN2((H14-H11),(I14-I11)) -> -2.883080035 | N11: A0 | O11: =H11 -> 195.0467248 | P11: =I11 -> 230.309653 | T11: =+[1]Synthesis!B8 -> 100 | U11: =+[1]Synthesis!C8 -> 200
G12: A | H12: =F8 -> -63.02029397 | I12: =G8 -> 185.6876656 | K12: a2 | L12: =SQRT((H12-H11)^2+(I12-I11)^2) -> 261.8963687 | N12: A | O12: =O11+L12*COS(B17+L10) -> -66.84964391 | P12: =P11+L12*SIN(B17+L10) -> 230.309653 | T12: =+T11+S4*COS([1]Synthesis!E8) -> 143.3012702 | U12: =+U11+S4*SIN([1]Synthesis!E8) -> 225
G13: B | H13: =F9 -> -59.89849728 | I13: =G9 -> -152.8940351 | K13: a3 | L13: =SQRT((H12-H13)^2+(I12-I13)^2) -> 338.5960922 | N13: B | O13: =O14+L14*COS(I17) -> 42.02234894 | P13: =P14+L14*SIN(I17) -> -90.30569717 | Q13: =O13 -> 42.02234894 | R13: =P13 -> -90.30569717
G14: B0 | H14: =H9 -> -166.3557854 | I14: =I9 -> 134.744157 | K14: a4 | L14: =SQRT((H13-H14)^2+(I13-I14)^2) -> 306.7065107 | M14: =ATAN2((H13-H14),(I13-I14)) -> -1.216321134 | N14: B0 | O14: =H14 -> -166.3557854 | P14: =I14 -> 134.744157 | Q14: =O15 -> 51.09059604 | R14: =P15 -> 73.6521719 | T14: 3
J15: q13 | M15: =M14/D_R -> -69.69006753 | N15: P | O15: =O12+L9*COS(J16+L7) -> 51.09059604 | P15: =P12+L9*SIN(J16+L7) -> 73.6521719 | Q15: =O12 -> -66.84964391 | R15: =P12 -> 230.309653 | T15: =+T16-S4*SIN([1]Synthesis!E7) -> 200 | U15: =+U16+S4*COS([1]Synthesis!E7) -> 350
A16: q12(degrees) | B16: radians | C16: Xa | D16: Ya | E16: s | F16: f | G16: m | H16: y | I16: q14 | J16: =I17-G17 -> -7.526626835 | N16: C | O16: =O15+S4*COS(J21*PI()/180-P5*PI()/180-PI()) -> 35.45081896 | P16: =P15+S4*SIN(J21*PI()/180-P5*PI()/180-PI()) -> 121.143196 | T16: =+[1]Synthesis!B7 -> 200 | U16: =+[1]Synthesis!C7 -> 300
A17: =MOD(A18*0.01,360) -> 180 | B17: =A17*PI()/180-$L$10 -> 6.024672689 | C17: =-L11+L12*COS(B17) -> -120.6303187 | D17: =L12*SIN(B17) -> -66.95194123 | E17: =SQRT(C17^2+D17^2) -> 137.9646195 | F17: =ATAN2(C17,D17) -> -2.634905378 | G17: =ACOS((L13^2+L14^2-E17^2)/(2*L13*L14)) -> 0.4195975203 | H17: =ACOS((L14^2+E17^2-L13^2)/(2*L14*E17)) -> 1.589043902 | I17: =F17-H17+L10 -> -7.107029315 | J17: =J16*180/PI() -> -431.2439516 | N17: E | O17: =O18+50*COS(J21*PI()/180-P5*PI()/180-PI()) -> 59.19633103 | P17: =P18+50*SIN(J21*PI()/180-P5*PI()/180-PI()) -> 128.9630846 | T17: =+T16+S4*COS([1]Synthesis!E7) -> 250 | U17: =+U16+S4*SIN([1]Synthesis!E7) -> 300
A18: 18000 | J18: =J17+360 -> -71.24395163 | N18: D | O18: =O15+25*COS(J21*PI()/180-P6-PI()) -> 74.8361081 | P18: =P15+25*SIN(J21*PI()/180-P6-PI()) -> 81.47206044
J19: =J18+360 -> 288.7560484 | N19: P | O19: =O15 -> 51.09059604 | P19: =P15 -> 73.6521719 | T19: 4
O20: =J21*PI()/180-P6-PI() -> 0.3181348432 | T20: =+T21-S4*SIN([1]Synthesis!E9) -> 343.3012702 | U20: =+U21+S4*COS([1]Synthesis!E9) -> 225
J21: =J19+L7*180/PI() -> 306.9744152 | N21: alpha234 | O21: =O20*180/PI() -> 18.22778383 | T21: =+[1]Synthesis!B9 -> 300 | U21: =+[1]Synthesis!C9 -> 200
T22: =+T21+S4*COS([1]Synthesis!E9) -> 325 | U22: =+U21+S4*SIN([1]Synthesis!E9) -> 156.6987298
M24: obstacle | N24: 120 | O24: 0
N25: 120 | O25: 200
N26: 270 | O26: 200
N27: 270 | O27: 0

Sheet Synthesis
K2: b2 | L2: (radians) | M2: b41 | N2: b42 | O2: -Z1x | P2: -Z1y | Q2: R1x | R2: R1y | S2: -Z2x | T2: -Z2y | U2: R2x | V2: R12y
A3: d3 | B3: 200 | C3: 300 | D3: a3 | E3: 0 | F3: 0 | K3: 15 | L3: =K3*PI()/180 -> 0.2617993878 | M3: =Burmester(B3:C3,B4:C4,B5:C5,E3,E4,E5,L3) -> 5.43690349 | N3: 0.2166377713 | O3: =ThreePosition_Basic2(E3,E5,B3:C3,B5:C5,L3,M3) -> 1247.396429 | P3: -817.4281918 | Q3: 208.0333117 | R3: 92.14721944 | S3: =ThreePosition_Basic2(E3,E5,B3:C3,B5:C5,L3,N3) -> 25.70744834 | T3: -133.8644333 | U3: -1013.655669 | V3: 775.710978
A4: d2 | B4: 100 | C4: 200 | D4: a2 | E4: 0.523598776 | F4: 30
A5: d4 | B5: 300 | C5: 200 | D5: a4 | E5: -1.047197551 | F5: 60
A7: b2 | C7: b41 | D7: b42 | E7: -Z1 | G7: R1 | I7: -Z2 | K7: R2
A8: 0 | B8: =A8*PI()/180 -> 0 | C8: =Burmester($B$3:$C$3,$B$4:$C$4,$B$5:$C$5,$E$3,$E$4,$E$5,B8) -> 5.235987756 | D8: 6.318037272e-16 | E8: =ThreePosition_Basic2($E$3,$E$5,$B$3:$C$3,$B$5:$C$5,B8,C8) ->  | I8: =ThreePosition_Basic2($E$3,$E$5,$B$3:$C$3,$B$5:$C$5,B8,D8) -> -8374471.451 | J8: -12561707.18 | K8: -2.142019431e+22 | L8: -1.059114012e+22
A9: 0.5 | B9: =A9*PI()/180 -> 0.00872664626 | C9: =Burmester($B$3:$C$3,$B$4:$C$4,$B$5:$C$5,$E$3,$E$4,$E$5,B9) -> 5.243348724 | D9: 0.006555483169 | E9: =ThreePosition_Basic2($E$3,$E$5,$B$3:$C$3,$B$5:$C$5,B9,C9) -> 34465.84221 | F9: -22955.25674 | G9: 188.5926644 | H9: 112.9096237 | I9: =ThreePosition_Basic2($E$3,$E$5,$B$3:$C$3,$B$5:$C$5,B9,D9) -> 52.93521239 | J9: -142.0824596 | K9: -34224.31433 | L9: 22926.0839
A10: 1 | B10: 0.01745329252 | C10: =Burmester($B$3:$C$3,$B$4:$C$4,$B$5:$C$5,$E$3,$E$4,$E$5,B10) -> 5.250663431 | D10: 0.01315617089 | E10: =ThreePosition_Basic2($E$3,$E$5,$B$3:$C$3,$B$5:$C$5,B10,C10) -> 17277.50475 | F10: -11496.71691 | G10: 189.2072351 | H10: 112.1481021 | I10: =ThreePosition_Basic2($E$3,$E$5,$B$3:$C$3,$B$5:$C$5,B10,D10) -> 52.02131265 | J10: -141.7330002 | K10: -17036.27621 | L10: 11467.13201
A11: 1.5 | B11: 0.02617993878 | C11: =Burmester($B$3:$C$3,$B$4:$C$4,$B$5:$C$5,$E$3,$E$4,$E$5,B11) -> 5.25793185 | D11: 0.01980221909 | E11: =ThreePosition_Basic2($E$3,$E$5,$B$3:$C$3,$B$5:$C$5,B11,C11) -> 11548.32825 | F11: -7677.61181 | G11: 189.8268489 | H11: 111.3891212 | I11: =ThreePosition_Basic2($E$3,$E$5,$B$3:$C$3,$B$5:$C$5,B11,D11) -> 51.10456494 | J11: -141.387555 | K11: -11307.39683 | L11: 7647.613376
A12: 2 | B12: 0.03490658504 | C12: =Burmester($B$3:$C$3,$B$4:$C$4,$B$5:$C$5,$E$3,$E$4,$E$5,B12) -> 5.265153964 | D12: 0.02649377207 | E12: =ThreePosition_Basic2($E$3,$E$5,$B$3:$C$3,$B$5:$C$5,B12,C12) -> 8683.945638 | F12: -5768.363398 | G12: 190.4513936 | H12: 110.6327653 | I12: =ThreePosition_Basic2($E$3,$E$5,$B$3:$C$3,$B$5:$C$5,B12,D12) -> 50.18508103 | J12: -141.0462068 | K12: -8443.309164 | L12: 5737.949956
A13: 2.5 | B13: 0.0436332313 | C13: =Burmester($B$3:$C$3,$B$4:$C$4,$B$5:$C$5,$E$3,$E$4,$E$5,B13) -> 5.27232977 | D13: 0.0332309624 | E13: =ThreePosition_Basic2($E$3,$E$5,$B$3:$C$3,$B$5:$C$5,B13,C13) -> 6965.483432 | F13: -4623.055999 | G13: 191.0807556 | H13: 109.8791187 | I13: =ThreePosition_Basic2($E$3,$E$5,$B$3:$C$3,$B$5:$C$5,B13,D13) -> 49.26297409 | J13: -140.7090379 | K13: -6725.139702 | L13: 4592.22608
A14: 3 | B14: 0.05235987756 | C14: =Burmester($B$3:$C$3,$B$4:$C$4,$B$5:$C$5,$E$3,$E$4,$E$5,B14) -> 5.279459273 | D14: 0.04001391083 | E14: =ThreePosition_Basic2($E$3,$E$5,$B$3:$C$3,$B$5:$C$5,B14,C14) -> 5819.983715 | F14: -3859.717665 | G14: 191.7148205 | H14: 109.1282646 | I14: =ThreePosition_Basic2($E$3,$E$5,$B$3:$C$3,$B$5:$C$5,B14,D14) -> 48.33835865 | J14: -140.3761304 | K14: -5579.930536 | L14: 3828.469799
A15: 3.5 | B15: 0.06108652382 | C15: =Burmester($B$3:$C$3,$B$4:$C$4,$B$5:$C$5,$E$3,$E$4,$E$5,B15) -> 5.286542493 | D15: 0.04684272625 | E15: =ThreePosition_Basic2($E$3,$E$5,$B$3:$C$3,$B$5:$C$5,B15,C15) -> 5001.89303 | F15: -3314.646086 | G15: 192.3534724 | H15: 108.3802859 | I15: =ThreePosition_Basic2($E$3,$E$5,$B$3:$C$3,$B$5:$C$5,B15,D15) -> 47.41135047 | J15: -140.0475657 | K15: -4762.128207 | L15: 3282.978806
A16: 4 | B16: 0.06981317008 | C16: =Burmester($B$3:$C$3,$B$4:$C$4,$B$5:$C$5,$E$3,$E$4,$E$5,B16) -> 5.293579461 | D16: 0.0537175056 | E16: =ThreePosition_Basic2($E$3,$E$5,$B$3:$C$3,$B$5:$C$5,B16,C16) -> 4388.434587 | F16: -2905.990063 | G16: 192.9965947 | H16: 107.635265 | I16: =ThreePosition_Basic2($E$3,$E$5,$B$3:$C$3,$B$5:$C$5,B16,D16) -> 46.48206648 | J16: -139.7234248 | K16: -4148.955926 | L16: 2873.901904
A17: 4.5 | B17: 0.07853981634 | C17: =Burmester($B$3:$C$3,$B$4:$C$4,$B$5:$C$5,$E$3,$E$4,$E$5,B17) -> 5.300570219 | D17: 0.06063833384 | E17: =ThreePosition_Basic2($E$3,$E$5,$B$3:$C$3,$B$5:$C$5,B17,C17) -> 3911.399007 | F17: -2588.276675 | G17: 193.6440697 | H17: 106.8932832 | I17: =ThreePosition_Basic2($E$3,$E$5,$B$3:$C$3,$B$5:$C$5,B17,D17) -> 45.5506247 | J17: -139.4037881 | K17: -3672.204312 | L17: 2555.76617
A18: 5 | B18: 0.0872664626 | C18: =Burmester($B$3:$C$3,$B$4:$C$4,$B$5:$C$5,$E$3,$E$4,$E$5,B18) -> 5.307514822 | D18: 0.06760528393 | E18: =ThreePosition_Basic2($E$3,$E$5,$B$3:$C$3,$B$5:$C$5,B18,C18) -> 3529.860611 | F18: -2334.222134 | G18: 194.295779 | H18: 106.1544213 | I18: =ThreePosition_Basic2($E$3,$E$5,$B$3:$C$3,$B$5:$C$5,B18,D18) -> 44.61714412 | J18: -139.0887352 | K18: -3290.947688 | L18: 2301.28782
A19: 5.5 | B19: 0.09599310886 | C19: =Burmester($B$3:$C$3,$B$4:$C$4,$B$5:$C$5,$E$3,$E$4,$E$5,B19) -> 5.314413338 | D19: 0.07461841684 | E19: =ThreePosition_Basic2($E$3,$E$5,$B$3:$C$3,$B$5:$C$5,B19,C19) -> 3217.775744 | F19: -2126.464001 | G19: 194.9516032 | H19: 105.418759 | I19: =ThreePosition_Basic2($E$3,$E$5,$B$3:$C$3,$B$5:$C$5,B19,D19) -> 43.68174465 | J19: -138.778345 | K19: -2979.142396 | L19: 2093.104415
A20: 6 | B20: 0.1047197551 | C20: =Burmester($B$3:$C$3,$B$4:$C$4,$B$5:$C$5,$E$3,$E$4,$E$5,B20) -> 5.321265844 | D20: 0.08167778152 | E20: =ThreePosition_Basic2($E$3,$E$5,$B$3:$C$3,$B$5:$C$5,B20,C20) -> 2957.781926 | F20: -1953.427293 | G20: 195.6114225 | H20: 104.6863754 | I20: =ThreePosition_Basic2($E$3,$E$5,$B$3:$C$3,$B$5:$C$5,B20,D20) -> 42.74454697 | J20: -138.4726957 | K20: -2719.425956 | L20: 1919.640973
A21: 6.5 | B21: 0.1134464014 | C21: =Burmester($B$3:$C$3,$B$4:$C$4,$B$5:$C$5,$E$3,$E$4,$E$5,B21) -> 5.328072431 | D21: 0.08878341498 | E21: =ThreePosition_Basic2($E$3,$E$5,$B$3:$C$3,$B$5:$C$5,B21,C21) -> 2737.858941 | F21: -1807.098535 | G21: 196.2751165 | H21: 103.9573484 | I21: =ThreePosition_Basic2($E$3,$E$5,$B$3:$C$3,$B$5:$C$5,B21,D21) -> 41.80567252 | J21: -138.1718645 | K21: -2499.778152 | L21: 1772.884018
A22: 7 | B22: 0.1221730476 | C22: =Burmester($B$3:$C$3,$B$4:$C$4,$B$5:$C$5,$E$3,$E$4,$E$5,B22) -> 5.334833203 | D22: 0.09593534225 | E22: =ThreePosition_Basic2($E$3,$E$5,$B$3:$C$3,$B$5:$C$5,B22,C22) -> 2549.420886 | F22: -1681.753793 | G22: 196.9425644 | H22: 103.2317549 | I22: =ThreePosition_Basic2($E$3,$E$5,$B$3:$C$3,$B$5:$C$5,B22,D22) -> 40.8652433 | J22: -137.8759277 | K22: -2311.613078 | L22: 1647.10962
A23: 7.5 | B23: 0.1308996939 | C23: =Burmester($B$3:$C$3,$B$4:$C$4,$B$5:$C$5,$E$3,$E$4,$E$5,B23) -> 5.341548274 | D23: 0.1031335765 | E23: =ThreePosition_Basic2($E$3,$E$5,$B$3:$C$3,$B$5:$C$5,B23,C23) -> 2386.171398 | F23: -1573.195498 | G23: 197.6136448 | H23: 102.5096708 | I23: =ThreePosition_Basic2($E$3,$E$5,$B$3:$C$3,$B$5:$C$5,B23,D23) -> 39.9233819 | J23: -137.5849607 | K23: -2148.634371 | L23: 1538.120208
A24: 8 | B24: 0.1396263402 | C24: =Burmester($B$3:$C$3,$B$4:$C$4,$B$5:$C$5,$E$3,$E$4,$E$5,B24) -> 5.34821777 | D24: 0.1103781192 | E24: =ThreePosition_Basic2($E$3,$E$5,$B$3:$C$3,$B$5:$C$5,B24,C24) -> 2243.388175 | F24: -1478.275455 | G24: 198.2882364 | H24: 101.7911708 | I24: =ThreePosition_Basic2($E$3,$E$5,$B$3:$C$3,$B$5:$C$5,B24,D24) -> 38.98021128 | J24: -137.2990377 | K24: -2006.119727 | L24: 1442.767588
A25: 8.5 | B25: 0.1483529864 | C25: =Burmester($B$3:$C$3,$B$4:$C$4,$B$5:$C$5,$E$3,$E$4,$E$5,B25) -> 5.35484183 | D25: 0.1176689598 | E25: =ThreePosition_Basic2($E$3,$E$5,$B$3:$C$3,$B$5:$C$5,B25,C25) -> 2117.460014 | F25: -1394.586203 | G25: 198.9662173 | H25: 101.0763285 | I25: =ThreePosition_Basic2($E$3,$E$5,$B$3:$C$3,$B$5:$C$5,B25,D25) -> 38.03585477 | J25: -137.0182319 | K25: -1880.457942 | L25: 1358.644299
A26: 9 | B26: 0.1570796327 | C26: =Burmester($B$3:$C$3,$B$4:$C$4,$B$5:$C$5,$E$3,$E$4,$E$5,B26) -> 5.361420604 | D26: 0.1250060765 | E26: =ThreePosition_Basic2($E$3,$E$5,$B$3:$C$3,$B$5:$C$5,B26,C26) -> 2005.578176 | F26: -1320.255258 | G26: 199.6474658 | H26: 100.3652161 | I26: =ThreePosition_Basic2($E$3,$E$5,$B$3:$C$3,$B$5:$C$5,B26,D26) -> 37.09043593 | J26: -136.7426154 | K26: -1768.840274 | L26: 1283.877858
A27: 9.5 | B27: 0.1658062789 | C27: =Burmester($B$3:$C$3,$B$4:$C$4,$B$5:$C$5,$E$3,$E$4,$E$5,B27) -> 5.367954252 | D27: 0.1323894358 | E27: =ThreePosition_Basic2($E$3,$E$5,$B$3:$C$3,$B$5:$C$5,B27,C27) -> 1905.525208 | F27: -1253.804328 | G27: 200.3318602 | H27: 99.65790456 | I27: =ThreePosition_Basic2($E$3,$E$5,$B$3:$C$3,$B$5:$C$5,B27,D27) -> 36.14407847 | J27: -136.4722591 | K27: -1669.04927 | L27: 1216.989973
A28: 10 | B28: 0.1745329252 | C28: =Burmester($B$3:$C$3,$B$4:$C$4,$B$5:$C$5,$E$3,$E$4,$E$5,B28) -> 5.374442949 | D28: 0.1398189928 | E28: =ThreePosition_Basic2($E$3,$E$5,$B$3:$C$3,$B$5:$C$5,B28,C28) -> 1815.527124 | F28: -1194.050767 | G28: 201.0192789 | H28: 98.95446364 | I28: =ThreePosition_Basic2($E$3,$E$5,$B$3:$C$3,$B$5:$C$5,B28,D28) -> 35.19690615 | J28: -136.2072325 | K28: -1579.310939 | L28: 1156.797998
A29: 10.5 | B29: 0.1832595715 | C29: =Burmester($B$3:$C$3,$B$4:$C$4,$B$5:$C$5,$E$3,$E$4,$E$5,B29) -> 5.380886878 | D29: 0.1472946915 | E29: =ThreePosition_Basic2($E$3,$E$5,$B$3:$C$3,$B$5:$C$5,B29,C29) -> 1734.147817 | F29: -1140.037182 | G29: 201.7096005 | H29: 98.25496156 | I29: =ThreePosition_Basic2($E$3,$E$5,$B$3:$C$3,$B$5:$C$5,B29,D29) -> 34.24904268 | J29: -135.9476039 | K29: -1498.189173 | L29: 1102.34454
A30: 11 | B30: 0.1919862177 | C30: =Burmester($B$3:$C$3,$B$4:$C$4,$B$5:$C$5,$E$3,$E$4,$E$5,B30) -> 5.387286235 | D30: 0.1548164647 | E30: =ThreePosition_Basic2($E$3,$E$5,$B$3:$C$3,$B$5:$C$5,B30,C30) -> 1660.212266 | F30: -1090.980243 | G30: 202.4027038 | H30: 97.55946517 | I30: =ThreePosition_Basic2($E$3,$E$5,$B$3:$C$3,$B$5:$C$5,B30,D30) -> 33.30061167 | J30: -135.6934403 | K30: -1424.50895 | L30: 1052.846268
A31: 11.5 | B31: 0.200712864 | C31: =Burmester($B$3:$C$3,$B$4:$C$4,$B$5:$C$5,$E$3,$E$4,$E$5,B31) -> 5.393641226 | D31: 0.1623842344 | E31: =ThreePosition_Basic2($E$3,$E$5,$B$3:$C$3,$B$5:$C$5,B31,C31) -> 1592.749783 | F31: -1046.232837 | G31: 203.0984682 | H31: 96.86803985 | I31: =ThreePosition_Basic2($E$3,$E$5,$B$3:$C$3,$B$5:$C$5,B31,D31) -> 32.35173647 | J31: -135.4448073 | K31: -1357.299579 | L31: 1007.656069
A32: 12 | B32: 0.2094395102 | C32: =Burmester($B$3:$C$3,$B$4:$C$4,$B$5:$C$5,$E$3,$E$4,$E$5,B32) -> 5.399952069 | D32: 0.1699979119 | E32: =ThreePosition_Basic2($E$3,$E$5,$B$3:$C$3,$B$5:$C$5,B32,C32) -> 1530.951441 | F32: -1005.255696 | G32: 203.7967733 | H32: 96.18074947 | I32: =ThreePosition_Basic2($E$3,$E$5,$B$3:$C$3,$B$5:$C$5,B32,D32) -> 31.40254014 | J32: -135.201769 | K32: -1295.752128 | L32: 966.2346764
A33: 12.5 | B33: 0.2181661565 | C33: =Burmester($B$3:$C$3,$B$4:$C$4,$B$5:$C$5,$E$3,$E$4,$E$5,B33) -> 5.406218991 | D33: 0.1776573978 | E33: =ThreePosition_Basic2($E$3,$E$5,$B$3:$C$3,$B$5:$C$5,B33,C33) -> 1474.137722 | F33: -967.5958255 | G33: 204.4974996 | H33: 95.49765635 | I33: =ThreePosition_Basic2($E$3,$E$5,$B$3:$C$3,$B$5:$C$5,B33,D33) -> 30.45314533 | J33: -134.9643882 | K33: -1239.187078 | L33: 928.1290937
A34: 13 | B34: 0.2268928028 | C34: =Burmester($B$3:$C$3,$B$4:$C$4,$B$5:$C$5,$E$3,$E$4,$E$5,B34) -> 5.412442231 | D34: 0.1853625826 | E34: =ThreePosition_Basic2($E$3,$E$5,$B$3:$C$3,$B$5:$C$5,B34,C34) -> 1421.733632 | F34: -932.8699144 | G34: 205.2005281 | H34: 94.81882126 | I34: =ThreePosition_Basic2($E$3,$E$5,$B$3:$C$3,$B$5:$C$5,B34,D34) -> 29.50367421 | J34: -134.7327259 | K34: -1187.029429 | L34: 892.9560097
A35: 13.5 | B35: 0.235619449 | C35: =Burmester($B$3:$C$3,$B$4:$C$4,$B$5:$C$5,$E$3,$E$4,$E$5,B35) -> 5.418622037 | D35: 0.1931133467 | E35: =ThreePosition_Basic2($E$3,$E$5,$B$3:$C$3,$B$5:$C$5,B35,C35) -> 1373.249342 | F35: -900.7514306 | G35: 205.9057405 | H35: 94.14430334 | I35: =ThreePosition_Basic2($E$3,$E$5,$B$3:$C$3,$B$5:$C$5,B35,D35) -> 28.55424838 | J35: -134.506842 | K35: -1138.789353 | L35: 860.388892
A36: 14 | B36: 0.2443460953 | C36: =Burmester($B$3:$C$3,$B$4:$C$4,$B$5:$C$5,$E$3,$E$4,$E$5,B36) -> 5.424758669 | D36: 0.2009095605 | E36: =ThreePosition_Basic2($E$3,$E$5,$B$3:$C$3,$B$5:$C$5,B36,C36) -> 1328.264984 | F36: -870.9604827 | G36: 206.6130194 | H36: 93.47416011 | I36: =ThreePosition_Basic2($E$3,$E$5,$B$3:$C$3,$B$5:$C$5,B36,D36) -> 27.60498878 | J36: -134.2867945 | K36: -1094.046975 | L36: 830.1478483
A37: 14.5 | B37: 0.2530727415 | C37: =Burmester($B$3:$C$3,$B$4:$C$4,$B$5:$C$5,$E$3,$E$4,$E$5,B37) -> 5.430852394 | D37: 0.2087510848 | E37: =ThreePosition_Basic2($E$3,$E$5,$B$3:$C$3,$B$5:$C$5,B37,C37) -> 1286.418587 | F37: -843.2557784 | G37: 207.3222483 | H37: 92.80844742 | I37: =ThreePosition_Basic2($E$3,$E$5,$B$3:$C$3,$B$5:$C$5,B37,D37) -> 26.65601563 | J37: -134.0726399 | K37: -1052.440323 | L37: 801.9915858
A38: 15 | B38: 0.2617993878 | C38: =Burmester($B$3:$C$3,$B$4:$C$4,$B$5:$C$5,$E$3,$E$4,$E$5,B38) -> 5.43690349 | D38: 0.2166377713 | E38: =ThreePosition_Basic2($E$3,$E$5,$B$3:$C$3,$B$5:$C$5,B38,C38) -> 1247.396429 | F38: -817.4281918 | G38: 208.0333117 | H38: 92.14721944 | I38: =ThreePosition_Basic2($E$3,$E$5,$B$3:$C$3,$B$5:$C$5,B38,D38) -> 25.70744834 | J38: -133.8644333 | K38: -1013.655669 | L38: 775.710978
A39: 15.5 | B39: 0.2705260341 | C39: =Burmester($B$3:$C$3,$B$4:$C$4,$B$5:$C$5,$E$3,$E$4,$E$5,B39) -> 5.442912245 | D39: 0.2245694621 | E39: =ThreePosition_Basic2($E$3,$E$5,$B$3:$C$3,$B$5:$C$5,B39,C39) -> 1210.925252 | F39: -793.2955758 | G39: 208.7460951 | H39: 91.49052866 | I39: =ThreePosition_Basic2($E$3,$E$5,$B$3:$C$3,$B$5:$C$5,B39,D39) -> 24.75940542 | J39: -133.6622277 | K39: -977.4197513 | L39: 751.1238768
A40: 16 | B40: 0.2792526803 | C40: =Burmester($B$3:$C$3,$B$4:$C$4,$B$5:$C$5,$E$3,$E$4,$E$5,B40) -> 5.448878956 | D40: 0.2325459909 | E40: =ThreePosition_Basic2($E$3,$E$5,$B$3:$C$3,$B$5:$C$5,B40,C40) -> 1176.765944 | F40: -770.6985464 | G40: 209.4604853 | H40: 90.83842583 | I40: =ThreePosition_Basic2($E$3,$E$5,$B$3:$C$3,$B$5:$C$5,B40,D40) -> 23.81200445 | J40: -133.466075 | K40: -943.4934539 | L40: 728.0708973
A41: 16.5 | B41: 0.2879793266 | C41: =Burmester($B$3:$C$3,$B$4:$C$4,$B$5:$C$5,$E$3,$E$4,$E$5,B41) -> 5.454803926 | D41: 0.2405671826 | E41: =ThreePosition_Basic2($E$3,$E$5,$B$3:$C$3,$B$5:$C$5,B41,C41) -> 1144.708362 | F41: -749.4970345 | G41: 210.1763701 | H41: 90.19095995 | I41: =ThreePosition_Basic2($E$3,$E$5,$B$3:$C$3,$B$5:$C$5,B41,D41) -> 22.86536195 | J41: -133.276025 | K41: -911.6666297 | L41: 706.4119695
A42: 17 | B42: 0.2967059728 | C42: =Burmester($B$3:$C$3,$B$4:$C$4,$B$5:$C$5,$E$3,$E$4,$E$5,B42) -> 5.460687469 | D42: 0.2486328539 | E42: =ThreePosition_Basic2($E$3,$E$5,$B$3:$C$3,$B$5:$C$5,B42,C42) -> 1114.567074 | F42: -729.5674455 | G42: 210.8936386 | H42: 89.5481783 | I42: =ThreePosition_Basic2($E$3,$E$5,$B$3:$C$3,$B$5:$C$5,B42,D42) -> 21.91959338 | J42: -133.092126 | K42: -881.7538424 | L42: 686.0234978
A43: 17.5 | B43: 0.3054326191 | C43: =Burmester($B$3:$C$3,$B$4:$C$4,$B$5:$C$5,$E$3,$E$4,$E$5,B43) -> 5.466529908 | D43: 0.2567428133 | E43: =ThreePosition_Basic2($E$3,$E$5,$B$3:$C$3,$B$5:$C$5,B43,C43) -> 1086.17783 | F43: -710.8003062 | G43: 211.6121816 | H43: 88.9101264 | I43: =ThreePosition_Basic2($E$3,$E$5,$B$3:$C$3,$B$5:$C$5,B43,D43) -> 20.97481303 | J43: -132.9144247 | K43: -853.5908358 | L43: 666.7960078
A44: 18 | B44: 0.3141592654 | C44: =Burmester($B$3:$C$3,$B$4:$C$4,$B$5:$C$5,$E$3,$E$4,$E$5,B44) -> 5.472331573 | D44: 0.2648968617 | E44: =ThreePosition_Basic2($E$3,$E$5,$B$3:$C$3,$B$5:$C$5,B44,C44) -> 1059.394618 | F44: -693.0983035 | G44: 212.3318908 | H44: 88.27684799 | I44: =ThreePosition_Basic2($E$3,$E$5,$B$3:$C$3,$B$5:$C$5,B44,D44) -> 20.03113397 | J44: -132.742966 | K44: -827.0315932 | L44: 648.6321855
A45: 18.5 | B45: 0.3228859116 | C45: =Burmester($B$3:$C$3,$B$4:$C$4,$B$5:$C$5,$E$3,$E$4,$E$5,B45) -> 5.4780928 | D45: 0.2730947927 | E45: =ThreePosition_Basic2($E$3,$E$5,$B$3:$C$3,$B$5:$C$5,B45,C45) -> 1034.0872 | F45: -676.3746417 | G45: 213.0526597 | H45: 87.64838506 | I45: =ThreePosition_Basic2($E$3,$E$5,$B$3:$C$3,$B$5:$C$5,B45,D45) -> 19.08866799 | J45: -132.577793 | K45: -801.9458721 | L45: 631.4452338
A46: 19 | B46: 0.3316125579 | C46: =Burmester($B$3:$C$3,$B$4:$C$4,$B$5:$C$5,$E$3,$E$4,$E$5,B46) -> 5.483813934 | D46: 0.2813363925 | E46: =ThreePosition_Basic2($E$3,$E$5,$B$3:$C$3,$B$5:$C$5,B46,C46) -> 1010.139038 | F46: -660.5516586 | G46: 213.7743831 | H46: 87.02477781 | I46: =ThreePosition_Basic2($E$3,$E$5,$B$3:$C$3,$B$5:$C$5,B46,D46) -> 18.14752557 | J46: -132.4189471 | K46: -778.2171291 | L46: 615.1574893
A47: 19.5 | B47: 0.3403392041 | C47: =Burmester($B$3:$C$3,$B$4:$C$4,$B$5:$C$5,$E$3,$E$4,$E$5,B47) -> 5.489495327 | D47: 0.2896214407 | E47: =ThreePosition_Basic2($E$3,$E$5,$B$3:$C$3,$B$5:$C$5,B47,C47) -> 987.4455374 | F47: -645.5596551 | G47: 214.4969577 | H47: 86.40606469 | I47: =ThreePosition_Basic2($E$3,$E$5,$B$3:$C$3,$B$5:$C$5,B47,D47) -> 17.2078158 | J47: -132.2664682 | K47: -755.7407639 | L47: 599.6992516
A48: 20 | B48: 0.3490658504 | C48: =Burmester($B$3:$C$3,$B$4:$C$4,$B$5:$C$5,$E$3,$E$4,$E$5,B48) -> 5.495137339 | D48: 0.2979497102 | E48: =ThreePosition_Basic2($E$3,$E$5,$B$3:$C$3,$B$5:$C$5,B48,C48) -> 965.9125545 | F48: -631.3358996 | G48: 215.2202816 | H48: 85.79228237 | I48: =ThreePosition_Basic2($E$3,$E$5,$B$3:$C$3,$B$5:$C$5,B48,D48) -> 16.26964633 | J48: -132.1203943 | K48: -734.4226266 | L48: 585.0077876
A49: 20.5 | B49: 0.3577924967 | C49: =Burmester($B$3:$C$3,$B$4:$C$4,$B$5:$C$5,$E$3,$E$4,$E$5,B49) -> 5.500740334 | D49: 0.3063209678 | E49: =ThreePosition_Basic2($E$3,$E$5,$B$3:$C$3,$B$5:$C$5,B49,C49) -> 945.4551212 | F49: -617.8237788 | G49: 215.9442544 | H49: 85.18346575 | I49: =ThreePosition_Basic2($E$3,$E$5,$B$3:$C$3,$B$5:$C$5,B49,D49) -> 15.33312335 | J49: -131.9807618 | K49: -714.1777435 | L49: 571.0264827
A50: 21 | B50: 0.3665191429 | C50: =Burmester($B$3:$C$3,$B$4:$C$4,$B$5:$C$5,$E$3,$E$4,$E$5,B50) -> 5.506304683 | D50: 0.3147349742 | E50: =ThreePosition_Basic2($E$3,$E$5,$B$3:$C$3,$B$5:$C$5,B50,C50) -> 925.9963539 | F50: -604.9720694 | G50: 216.6687778 | H50: 84.57964801 | I50: =ThreePosition_Basic2($E$3,$E$5,$B$3:$C$3,$B$5:$C$5,B50,D50) -> 14.39835152 | J50: -131.8476052 | K50: -694.9292246 | L50: 557.7041122
A51: 21.5 | B51: 0.3752457892 | C51: =Burmester($B$3:$C$3,$B$4:$C$4,$B$5:$C$5,$E$3,$E$4,$E$5,B51) -> 5.511830764 | D51: 0.3231914848 | E51: =ThreePosition_Basic2($E$3,$E$5,$B$3:$C$3,$B$5:$C$5,B51,C51) -> 907.4665135 | F51: -592.7343118 | G51: 217.393755 | H51: 83.98086054 | I51: =ThreePosition_Basic2($E$3,$E$5,$B$3:$C$3,$B$5:$C$5,B51,D51) -> 13.46543397 | J51: -131.7209575 | K51: -676.6073245 | L51: 544.9942148
A52: 22 | B52: 0.3839724354 | C52: =Burmester($B$3:$C$3,$B$4:$C$4,$B$5:$C$5,$E$3,$E$4,$E$5,B52) -> 5.517318961 | D52: 0.3316902493 | E52: =ThreePosition_Basic2($E$3,$E$5,$B$3:$C$3,$B$5:$C$5,B52,C52) -> 889.8021934 | F52: -581.0682686 | G52: 218.119091 | H52: 83.38713302 | I52: =ThreePosition_Basic2($E$3,$E$5,$B$3:$C$3,$B$5:$C$5,B52,D52) -> 12.53447223 | J52: -131.60085 | K52: -659.1486302 | L52: 532.8545516
A53: 22.5 | B53: 0.3926990817 | C53: =Burmester($B$3:$C$3,$B$4:$C$4,$B$5:$C$5,$E$3,$E$4,$E$5,B53) -> 5.52276966 | D53: 0.3402310127 | E53: =ThreePosition_Basic2($E$3,$E$5,$B$3:$C$3,$B$5:$C$5,B53,C53) -> 872.9456166 | F53: -569.9354558 | G53: 218.8446928 | H53: 82.79849341 | I53: =ThreePosition_Basic2($E$3,$E$5,$B$3:$C$3,$B$5:$C$5,B53,D53) -> 11.60556619 | J53: -131.4873122 | K53: -642.4953576 | L53: 521.246637
A54: 23 | B54: 0.401425728 | C54: =Burmester($B$3:$C$3,$B$4:$C$4,$B$5:$C$5,$E$3,$E$4,$E$5,B54) -> 5.528183255 | D54: 0.3488135153 | E54: =ThreePosition_Basic2($E$3,$E$5,$B$3:$C$3,$B$5:$C$5,B54,C54) -> 856.8440237 | F54: -559.3007351 | G54: 219.5704691 | H54: 82.21496797 | I54: =ThreePosition_Basic2($E$3,$E$5,$B$3:$C$3,$B$5:$C$5,B54,D54) -> 10.67881411 | J54: -131.380372 | K54: -626.5947406 | L54: 510.1353311
A55: 23.5 | B55: 0.4101523742 | C55: =Burmester($B$3:$C$3,$B$4:$C$4,$B$5:$C$5,$E$3,$E$4,$E$5,B55) -> 5.533560145 | D55: 0.3574374927 | E55: =ThreePosition_Basic2($E$3,$E$5,$B$3:$C$3,$B$5:$C$5,B55,C55) -> 841.4491394 | F55: -549.1319581 | G55: 220.2963304 | H55: 81.63658127 | I55: =ThreePosition_Basic2($E$3,$E$5,$B$3:$C$3,$B$5:$C$5,B55,D55) -> 9.754312578 | J55: -131.2800557 | K55: -611.3984965 | L55: 499.4884836
A56: 24 | B56: 0.4188790205 | C56: =Burmester($B$3:$C$3,$B$4:$C$4,$B$5:$C$5,$E$3,$E$4,$E$5,B56) -> 5.538900731 | D56: 0.3661026768 | E56: =ThreePosition_Basic2($E$3,$E$5,$B$3:$C$3,$B$5:$C$5,B56,C56) -> 826.7167058 | F56: -539.3996548 | G56: 221.0221894 | H56: 81.0633562 | I56: =ThreePosition_Basic2($E$3,$E$5,$B$3:$C$3,$B$5:$C$5,B56,D56) -> 8.832156475 | J56: -131.186388 | K56: -596.8623599 | L56: 489.2766229
A57: 24.5 | B57: 0.4276056667 | C57: =Burmester($B$3:$C$3,$B$4:$C$4,$B$5:$C$5,$E$3,$E$4,$E$5,B57) -> 5.544205421 | D57: 0.3748087954 | E57: =ThreePosition_Basic2($E$3,$E$5,$B$3:$C$3,$B$5:$C$5,B57,C57) -> 812.6060723 | F57: -530.0767606 | G57: 221.7479604 | H57: 80.49531402 | I57: =ThreePosition_Basic2($E$3,$E$5,$B$3:$C$3,$B$5:$C$5,B57,D57) -> 7.912438969 | J57: -131.0993919 | K57: -582.9456729 | L57: 479.4726827
A58: 25 | B58: 0.436332313 | C58: =Burmester($B$3:$C$3,$B$4:$C$4,$B$5:$C$5,$E$3,$E$4,$E$5,B58) -> 5.549474624 | D58: 0.383555573 | E58: =ThreePosition_Basic2($E$3,$E$5,$B$3:$C$3,$B$5:$C$5,B58,C58) -> 799.0798355 | F58: -521.138376 | G58: 222.47356 | H58: 79.93247437 | I58: =ThreePosition_Basic2($E$3,$E$5,$B$3:$C$3,$B$5:$C$5,B58,D58) -> 6.995251491 | J58: -131.0190888 | K58: -569.6110241 | L58: 470.0517616
A59: 25.5 | B59: 0.4450589593 | C59: =Burmester($B$3:$C$3,$B$4:$C$4,$B$5:$C$5,$E$3,$E$4,$E$5,B59) -> 5.554708755 | D59: 0.3923427309 | E59: =ThreePosition_Basic2($E$3,$E$5,$B$3:$C$3,$B$5:$C$5,B59,C59) -> 786.1035208 | F59: -512.5615544 | G59: 223.1989064 | H59: 79.37485527 | I59: =ThreePosition_Basic2($E$3,$E$5,$B$3:$C$3,$B$5:$C$5,B59,D59) -> 6.080683729 | J59: -130.9454986 | K59: -556.8239307 | L59: 460.990911
A60: 26 | B60: 0.4537856055 | C60: =Burmester($B$3:$C$3,$B$4:$C$4,$B$5:$C$5,$E$3,$E$4,$E$5,B60) -> 5.55990823 | D60: 0.4011699872 | E60: =ThreePosition_Basic2($E$3,$E$5,$B$3:$C$3,$B$5:$C$5,B60,C60) -> 773.6453011 | F60: -504.3251142 | G60: 223.9239199 | H60: 78.82247321 | I60: =ThreePosition_Basic2($E$3,$E$5,$B$3:$C$3,$B$5:$C$5,B60,D60) -> 5.168823615 | J60: -130.8786397 | K60: -544.5525575 | L60: 452.2689477
A61: 26.5 | B61: 0.4625122518 | C61: =Burmester($B$3:$C$3,$B$4:$C$4,$B$5:$C$5,$E$3,$E$4,$E$5,B61) -> 5.565073471 | D61: 0.4100370577 | E61: =ThreePosition_Basic2($E$3,$E$5,$B$3:$C$3,$B$5:$C$5,B61,C61) -> 761.675747 | F61: -496.4094729 | G61: 224.648523 | H61: 78.27534308 | I61: =ThreePosition_Basic2($E$3,$E$5,$B$3:$C$3,$B$5:$C$5,B61,D61) -> 4.259757314 | J61: -130.8185288 | K61: -532.7674667 | L61: 443.8662872
A62: 27 | B62: 0.471238898 | C62: =Burmester($B$3:$C$3,$B$4:$C$4,$B$5:$C$5,$E$3,$E$4,$E$5,B62) -> 5.5702049 | D62: 0.4189436556 | E62: =ThreePosition_Basic2($E$3,$E$5,$B$3:$C$3,$B$5:$C$5,B62,C62) -> 750.1676053 | F62: -488.7964987 | G62: 225.3726398 | H62: 77.7334783 | I62: =ThreePosition_Basic2($E$3,$E$5,$B$3:$C$3,$B$5:$C$5,B62,D62) -> 3.353569222 | J62: -130.7651814 | K62: -521.4413963 | L62: 435.7647956
A63: 27.5 | B63: 0.4799655443 | C63: =Burmester($B$3:$C$3,$B$4:$C$4,$B$5:$C$5,$E$3,$E$4,$E$5,B63) -> 5.575302943 | D63: 0.4278894923 | E63: =ThreePosition_Basic2($E$3,$E$5,$B$3:$C$3,$B$5:$C$5,B63,C63) -> 739.0956013 | F63: -481.4693789 | G63: 226.0961967 | H63: 77.19689078 | I63: =ThreePosition_Basic2($E$3,$E$5,$B$3:$C$3,$B$5:$C$5,B63,D63) -> 2.450341966 | J63: -130.7186112 | K63: -510.5490626 | L63: 427.9476585
A64: 28 | B64: 0.4886921906 | C64: =Burmester($B$3:$C$3,$B$4:$C$4,$B$5:$C$5,$E$3,$E$4,$E$5,B64) -> 5.580368027 | D64: 0.436874277 | E64: =ThreePosition_Basic2($E$3,$E$5,$B$3:$C$3,$B$5:$C$5,B64,C64) -> 728.4362621 | F64: -474.4125024 | G64: 226.8191221 | H64: 76.66559097 | I64: =ThreePosition_Basic2($E$3,$E$5,$B$3:$C$3,$B$5:$C$5,B64,D64) -> 1.5501564 | J64: -130.6788308 | K64: -500.0669836 | L64: 420.3992626
A65: 28.5 | B65: 0.4974188368 | C65: =Burmester($B$3:$C$3,$B$4:$C$4,$B$5:$C$5,$E$3,$E$4,$E$5,B65) -> 5.585400583 | D65: 0.4458977177 | E65: =ThreePosition_Basic2($E$3,$E$5,$B$3:$C$3,$B$5:$C$5,B65,C65) -> 718.1677589 | F65: -467.611354 | G65: 227.5413461 | H65: 76.1395879 | I65: =ThreePosition_Basic2($E$3,$E$5,$B$3:$C$3,$B$5:$C$5,B65,D65) -> 0.6530916103 | J65: -130.6458511 | K65: -489.9733212 | L65: 413.1050908
A66: 29 | B66: 0.5061454831 | C66: =Burmester($B$3:$C$3,$B$4:$C$4,$B$5:$C$5,$E$3,$E$4,$E$5,B66) -> 5.590401042 | D66: 0.4549595208 | E66: =ThreePosition_Basic2($E$3,$E$5,$B$3:$C$3,$B$5:$C$5,B66,C66) -> 708.2697653 | F66: -461.0524203 | G66: 228.2628011 | H66: 75.61888923 | I66: =ThreePosition_Basic2($E$3,$E$5,$B$3:$C$3,$B$5:$C$5,B66,D66) -> -0.2407750785 | J66: -130.6196818 | K66: -480.2477393 | L66: 406.0516277
A67: 29.5 | B67: 0.5148721293 | C67: =Burmester($B$3:$C$3,$B$4:$C$4,$B$5:$C$5,$E$3,$E$4,$E$5,B67) -> 5.595369837 | D67: 0.4640593918 | E67: =ThreePosition_Basic2($E$3,$E$5,$B$3:$C$3,$B$5:$C$5,B67,C67) -> 698.7233304 | F67: -454.7231049 | G67: 228.9834213 | H67: 75.10350122 | I67: =ThreePosition_Basic2($E$3,$E$5,$B$3:$C$3,$B$5:$C$5,B67,D67) -> -1.131368097 | J67: -130.6003312 | K67: -470.8712772 | L67: 399.2262749
A68: 30 | B68: 0.5235987756 | C68: =Burmester($B$3:$C$3,$B$4:$C$4,$B$5:$C$5,$E$3,$E$4,$E$5,B68) -> 5.600307402 | D68: 0.4731970355 | E68: =ThreePosition_Basic2($E$3,$E$5,$B$3:$C$3,$B$5:$C$5,B68,C68) -> 689.510764 | F68: -448.6116519 | G68: 229.7031429 | H68: 74.59342883 | I68: =ThreePosition_Basic2($E$3,$E$5,$B$3:$C$3,$B$5:$C$5,B68,D68) -> -2.018613622 | J68: -130.5878064 | K68: -461.8262348 | L68: 392.6172744
A69: 30.5 | B69: 0.5323254219 | C69: =Burmester($B$3:$C$3,$B$4:$C$4,$B$5:$C$5,$E$3,$E$4,$E$5,B69) -> 5.605214172 | D69: 0.4823721559 | E69: =ThreePosition_Basic2($E$3,$E$5,$B$3:$C$3,$B$5:$C$5,B69,C69) -> 680.6155338 | F69: -442.7070773 | G69: 230.4219042 | H69: 74.08867573 | I69: =ThreePosition_Basic2($E$3,$E$5,$B$3:$C$3,$B$5:$C$5,B69,D69) -> -2.902439562 | J69: -130.582113 | K69: -453.0960691 | L69: 386.2136401
A70: 31 | B70: 0.5410520681 | C70: =Burmester($B$3:$C$3,$B$4:$C$4,$B$5:$C$5,$E$3,$E$4,$E$5,B70) -> 5.610090584 | D70: 0.4915844568 | E70: =ThreePosition_Basic2($E$3,$E$5,$B$3:$C$3,$B$5:$C$5,B70,C70) -> 672.0221717 | F70: -436.9991066 | G70: 231.1396453 | H70: 73.58924432 | I70: =ThreePosition_Basic2($E$3,$E$5,$B$3:$C$3,$B$5:$C$5,B70,D70) -> -3.782775546 | J70: -130.5832555 | K70: -444.6653019 | L70: 380.0050954
A71: 31.5 | B71: 0.5497787144 | C71: =Burmester($B$3:$C$3,$B$4:$C$4,$B$5:$C$5,$E$3,$E$4,$E$5,B71) -> 5.614937074 | D71: 0.5008336418 | E71: =ThreePosition_Basic2($E$3,$E$5,$B$3:$C$3,$B$5:$C$5,B71,C71) -> 663.7161898 | F71: -431.4781185 | G71: 231.8563084 | H71: 73.09513579 | I71: =ThreePosition_Basic2($E$3,$E$5,$B$3:$C$3,$B$5:$C$5,B71,D71) -> -4.659552904 | J71: -130.5912372 | K71: -436.5194343 | L71: 373.9820171
A72: 32 | B72: 0.5585053606 | C72: =Burmester($B$3:$C$3,$B$4:$C$4,$B$5:$C$5,$E$3,$E$4,$E$5,B72) -> 5.61975408 | D72: 0.5101194147 | E72: =ThreePosition_Basic2($E$3,$E$5,$B$3:$C$3,$B$5:$C$5,B72,C72) -> 655.684004 | F72: -426.1350942 | G72: 232.5718374 | H72: 72.60635016 | I72: =ThreePosition_Basic2($E$3,$E$5,$B$3:$C$3,$B$5:$C$5,B72,D72) -> -5.532704655 | J72: -130.6060602 | K72: -428.6448712 | L72: 368.1353842
A73: 32.5 | B73: =A73*PI()/180 -> 0.5672320069 | C73: =Burmester($B$3:$C$3,$B$4:$C$4,$B$5:$C$5,$E$3,$E$4,$E$5,B73) -> 5.624542038 | D73: 0.5194414796 | E73: =ThreePosition_Basic2($E$3,$E$5,$B$3:$C$3,$B$5:$C$5,B73,C73) -> 647.9128644 | F73: -420.9615711 | G73: 233.2861783 | H73: 72.12288627 | I73: =ThreePosition_Basic2($E$3,$E$5,$B$3:$C$3,$B$5:$C$5,B73,D73) -> -6.40216548 | J73: -130.6277254 | K73: -421.0288516 | L73: 362.456732
A74: 33 | B74: 0.5759586532 | C74: =Burmester($B$3:$C$3,$B$4:$C$4,$B$5:$C$5,$E$3,$E$4,$E$5,B74) -> 5.629301387 | D74: 0.528799541 | E74: =ThreePosition_Basic2($E$3,$E$5,$B$3:$C$3,$B$5:$C$5,B74,C74) -> 640.3907923 | F74: -415.9496004 | G74: 233.9992789 | H74: 71.64474187 | I74: =ThreePosition_Basic2($E$3,$E$5,$B$3:$C$3,$B$5:$C$5,B74,D74) -> -7.267871708 | J74: -130.6562326 | K74: -413.6593851 | L74: 356.9381097
A75: 33.5 | B75: 0.5846852994 | C75: =Burmester($B$3:$C$3,$B$4:$C$4,$B$5:$C$5,$E$3,$E$4,$E$5,B75) -> 5.634032563 | D75: 0.5381933041 | E75: =ThreePosition_Basic2($E$3,$E$5,$B$3:$C$3,$B$5:$C$5,B75,C75) -> 633.1065228 | F75: -411.091709 | G75: 234.7110889 | H75: 71.17191363 | I75: =ThreePosition_Basic2($E$3,$E$5,$B$3:$C$3,$B$5:$C$5,B75,D75) -> -8.12976129 | J75: -130.6915806 | K75: -406.5251952 | L75: 351.5720421
A76: 34 | B76: 0.5934119457 | C76: =Burmester($B$3:$C$3,$B$4:$C$4,$B$5:$C$5,$E$3,$E$4,$E$5,B76) -> 5.638736003 | D76: 0.5476224752 | E76: =ThreePosition_Basic2($E$3,$E$5,$B$3:$C$3,$B$5:$C$5,B76,C76) -> 626.0494525 | F76: -406.3808647 | G76: 235.4215598 | H76: 70.70439719 | I76: =ThreePosition_Basic2($E$3,$E$5,$B$3:$C$3,$B$5:$C$5,B76,D76) -> -8.987773774 | J76: -130.733767 | K76: -399.6156665 | L76: 346.3514948
A77: 34.5 | B77: 0.6021385919 | C77: =Burmester($B$3:$C$3,$B$4:$C$4,$B$5:$C$5,$E$3,$E$4,$E$5,B77) -> 5.643412143 | D77: 0.5570867615 | E77: =ThreePosition_Basic2($E$3,$E$5,$B$3:$C$3,$B$5:$C$5,B77,C77) -> 619.2095916 | F77: -401.8104439 | G77: 236.1306449 | H77: 70.24218717 | I77: =ThreePosition_Basic2($E$3,$E$5,$B$3:$C$3,$B$5:$C$5,B77,D77) -> -9.841850283 | J77: -130.7827887 | K77: -392.9207969 | L77: 341.2698424
A78: 35 | B78: 0.6108652382 | C78: =Burmester($B$3:$C$3,$B$4:$C$4,$B$5:$C$5,$E$3,$E$4,$E$5,B78) -> 5.648061419 | D78: 0.5665858714 | E78: =ThreePosition_Basic2($E$3,$E$5,$B$3:$C$3,$B$5:$C$5,B78,C78) -> 612.5775199 | F78: -397.374203 | G78: 236.8382996 | H78: 69.78527725 | I78: =ThreePosition_Basic2($E$3,$E$5,$B$3:$C$3,$B$5:$C$5,B78,D78) -> -10.69193349 | J78: -130.8386412 | K78: -386.4311538 | L78: 336.320839
A79: 35.5 | B79: 0.6195918845 | C79: =Burmester($B$3:$C$3,$B$4:$C$4,$B$5:$C$5,$E$3,$E$4,$E$5,B79) -> 5.652684266 | D79: 0.5761195149 | E79: =ThreePosition_Basic2($E$3,$E$5,$B$3:$C$3,$B$5:$C$5,B79,C79) -> 606.1443475 | F79: -393.0662511 | G79: 237.5444806 | H79: 69.33366017 | I79: =ThreePosition_Basic2($E$3,$E$5,$B$3:$C$3,$B$5:$C$5,B79,D79) -> -11.53796757 | J79: -130.9013194 | K79: -380.1378345 | L79: 331.4985918
A80: 36 | B80: 0.6283185307 | C80: =Burmester($B$3:$C$3,$B$4:$C$4,$B$5:$C$5,$E$3,$E$4,$E$5,B80) -> 5.657281117 | D80: 0.5856874034 | E80: =ThreePosition_Basic2($E$3,$E$5,$B$3:$C$3,$B$5:$C$5,B80,C80) -> 599.9016772 | F80: -388.8810259 | G80: 238.2491466 | H80: 68.88732777 | I80: =ThreePosition_Basic2($E$3,$E$5,$B$3:$C$3,$B$5:$C$5,B80,D80) -> -12.37989821 | J80: -130.9708172 | K80: -374.0324288 | L80: 326.7975366
A81: 36.5 | B81: 0.637045177 | C81: =Burmester($B$3:$C$3,$B$4:$C$4,$B$5:$C$5,$E$3,$E$4,$E$5,B81) -> 5.661852404 | D81: 0.5952892502 | E81: =ThreePosition_Basic2($E$3,$E$5,$B$3:$C$3,$B$5:$C$5,B81,C81) -> 593.8415716 | F81: -384.8132712 | G81: 238.9522581 | H81: 68.44627106 | I81: =ThreePosition_Basic2($E$3,$E$5,$B$3:$C$3,$B$5:$C$5,B81,D81) -> -13.21767255 | J81: -131.0471274 | K81: -368.106986 | L81: 322.2124149
A82: 37 | B82: 0.6457718232 | C82: =Burmester($B$3:$C$3,$B$4:$C$4,$B$5:$C$5,$E$3,$E$4,$E$5,B82) -> 5.66639856 | D82: 0.6049247703 | E82: =ThreePosition_Basic2($E$3,$E$5,$B$3:$C$3,$B$5:$C$5,B82,C82) -> 587.9565216 | F82: -380.8580161 | G82: 239.6537772 | H82: 68.0104802 | I82: =ThreePosition_Basic2($E$3,$E$5,$B$3:$C$3,$B$5:$C$5,B82,D82) -> -14.05123915 | J82: -131.1302423 | K82: -362.3539836 | L82: 317.7382539
A83: 37.5 | B83: 0.6544984695 | C83: =Burmester($B$3:$C$3,$B$4:$C$4,$B$5:$C$5,$E$3,$E$4,$E$5,B83) -> 5.670920014 | D83: 0.6145936808 | E83: =ThreePosition_Basic2($E$3,$E$5,$B$3:$C$3,$B$5:$C$5,B83,C83) -> 582.2394182 | F83: -377.0105559 | G83: 240.3536675 | H83: 67.5799446 | I83: =ThreePosition_Basic2($E$3,$E$5,$B$3:$C$3,$B$5:$C$5,B83,D83) -> -14.88054799 | J83: -131.2201533 | K83: -356.7662987 | L83: 313.3703472
A84: 38 | B84: 0.6632251158 | C84: =Burmester($B$3:$C$3,$B$4:$C$4,$B$5:$C$5,$E$3,$E$4,$E$5,B84) -> 5.675417194 | D84: 0.6242957009 | E84: =ThreePosition_Basic2($E$3,$E$5,$B$3:$C$3,$B$5:$C$5,B84,C84) -> 576.6835261 | F84: -373.2664349 | G84: 241.0518945 | H84: 67.15465289 | I84: =ThreePosition_Basic2($E$3,$E$5,$B$3:$C$3,$B$5:$C$5,B84,D84) -> -15.7055504 | J84: -131.3168508 | K84: -351.337182 | L84: 309.1042369
A85: 38.5 | B85: 0.671951762 | C85: =Burmester($B$3:$C$3,$B$4:$C$4,$B$5:$C$5,$E$3,$E$4,$E$5,B85) -> 5.679890527 | D85: 0.6340305522 | E85: =ThreePosition_Basic2($E$3,$E$5,$B$3:$C$3,$B$5:$C$5,B85,C85) -> 571.2824598 | F85: -369.6214301 | G85: 241.7484252 | H85: 66.73459302 | I85: =ThreePosition_Basic2($E$3,$E$5,$B$3:$C$3,$B$5:$C$5,B85,D85) -> -16.52619904 | J85: -131.4203248 | K85: -346.0602337 | L85: 304.9356983
A86: 39 | B86: 0.6806784083 | C86: =Burmester($B$3:$C$3,$B$4:$C$4,$B$5:$C$5,$E$3,$E$4,$E$5,B86) -> 5.684340438 | D86: 0.6437979584 | E86: =ThreePosition_Basic2($E$3,$E$5,$B$3:$C$3,$B$5:$C$5,B86,C86) -> 566.0301609 | F86: -366.0715363 | G86: 242.443228 | H86: 66.31975224 | I86: =ThreePosition_Basic2($E$3,$E$5,$B$3:$C$3,$B$5:$C$5,B86,D86) -> -17.34244788 | J86: -131.5305643 | K86: -340.9293807 | L86: 300.8607243
A87: 39.5 | B87: 0.6894050545 | C87: =Burmester($B$3:$C$3,$B$4:$C$4,$B$5:$C$5,$E$3,$E$4,$E$5,B87) -> 5.68876735 | D87: 0.6535976461 | E87: =ThreePosition_Basic2($E$3,$E$5,$B$3:$C$3,$B$5:$C$5,B87,C87) -> 560.9208774 | F87: -362.6129523 | G87: 243.1362732 | H87: 65.91011716 | I87: =ThreePosition_Basic2($E$3,$E$5,$B$3:$C$3,$B$5:$C$5,B87,D87) -> -18.15425216 | J87: -131.6475577 | K87: -335.9388564 | L87: 296.8755117
A88: 40 | B88: 0.6981317008 | C88: =Burmester($B$3:$C$3,$B$4:$C$4,$B$5:$C$5,$E$3,$E$4,$E$5,B88) -> 5.693171685 | D88: 0.6634293442 | E88: =ThreePosition_Basic2($E$3,$E$5,$B$3:$C$3,$B$5:$C$5,B88,C88) -> 555.9491452 | F88: -359.2420681 | G88: 243.8275323 | H88: 65.5056738 | I88: =ThreePosition_Basic2($E$3,$E$5,$B$3:$C$3,$B$5:$C$5,B88,D88) -> -18.96156834 | J88: -131.7712929 | K88: -331.0831813 | L88: 292.976449
A89: 40.5 | B89: 0.7068583471 | C89: =Burmester($B$3:$C$3,$B$4:$C$4,$B$5:$C$5,$E$3,$E$4,$E$5,B89) -> 5.69755386 | D89: 0.6732927844 | E89: =ThreePosition_Basic2($E$3,$E$5,$B$3:$C$3,$B$5:$C$5,B89,C89) -> 551.1097697 | F89: -355.9554534 | G89: 244.5169783 | H89: 65.10640757 | I89: =ThreePosition_Basic2($E$3,$E$5,$B$3:$C$3,$B$5:$C$5,B89,D89) -> -19.7643541 | J89: -131.901757 | K89: -326.3571455 | L89: 289.1601039
A90: 41 | B90: 0.7155849933 | C90: =Burmester($B$3:$C$3,$B$4:$C$4,$B$5:$C$5,$E$3,$E$4,$E$5,B90) -> 5.701914294 | D90: 0.6831877011 | E90: =ThreePosition_Basic2($E$3,$E$5,$B$3:$C$3,$B$5:$C$5,B90,C90) -> 546.39781 | F90: -352.749846 | G90: 245.2045859 | H90: 64.71230336 | I90: =ThreePosition_Basic2($E$3,$E$5,$B$3:$C$3,$B$5:$C$5,B90,D90) -> -20.56256827 | J90: -132.0389366 | K90: -321.7557924 | L90: 285.4232128
A91: 41.5 | B91: 0.7243116396 | C91: =Burmester($B$3:$C$3,$B$4:$C$4,$B$5:$C$5,$E$3,$E$4,$E$5,B91) -> 5.706253401 | D91: 0.6931138319 | E91: =ThreePosition_Basic2($E$3,$E$5,$B$3:$C$3,$B$5:$C$5,B91,C91) -> 541.8085631 | F91: -349.6221426 | G91: 245.8903309 | H91: 64.32334555 | I91: =ThreePosition_Basic2($E$3,$E$5,$B$3:$C$3,$B$5:$C$5,B91,D91) -> -21.35617079 | J91: -132.1828177 | K91: -317.274403 | L91: 281.7626705
A92: 42 | B92: 0.7330382858 | C92: =Burmester($B$3:$C$3,$B$4:$C$4,$B$5:$C$5,$E$3,$E$4,$E$5,B92) -> 5.710571593 | D92: 0.7030709169 | E92: =ThreePosition_Basic2($E$3,$E$5,$B$3:$C$3,$B$5:$C$5,B92,C92) -> 537.3375504 | F92: -346.5693884 | G92: 246.5741907 | H92: 63.93951802 | I92: =ThreePosition_Basic2($E$3,$E$5,$B$3:$C$3,$B$5:$C$5,B92,D92) -> -22.14512274 | J92: -132.3333857 | K92: -312.9084824 | L92: 278.1755208
A93: 42.5 | B93: 0.7417649321 | C93: =Burmester($B$3:$C$3,$B$4:$C$4,$B$5:$C$5,$E$3,$E$4,$E$5,B93) -> 5.71486928 | D93: 0.7130586997 | E93: =ThreePosition_Basic2($E$3,$E$5,$B$3:$C$3,$B$5:$C$5,B93,C93) -> 532.9805039 | F93: -343.5887692 | G93: 247.2561439 | H93: 63.56080424 | I93: =ThreePosition_Basic2($E$3,$E$5,$B$3:$C$3,$B$5:$C$5,B93,D93) -> -22.92938621 | J93: -132.4906256 | K93: -308.6537463 | L93: 274.6589478
A94: 43 | B94: 0.7504915784 | C94: =Burmester($B$3:$C$3,$B$4:$C$4,$B$5:$C$5,$E$3,$E$4,$E$5,B94) -> 5.719146871 | D94: 0.7230769268 | E94: =ThreePosition_Basic2($E$3,$E$5,$B$3:$C$3,$B$5:$C$5,B94,C94) -> 528.7333548 | F94: -340.6776023 | G94: 247.9361704 | H94: 63.18718722 | I94: =ThreePosition_Basic2($E$3,$E$5,$B$3:$C$3,$B$5:$C$5,B94,D94) -> -23.70892434 | J94: -132.654522 | K94: -304.5061087 | L94: 271.2102676
A95: 43.5 | B95: 0.7592182246 | C95: =Burmester($B$3:$C$3,$B$4:$C$4,$B$5:$C$5,$E$3,$E$4,$E$5,B95) -> 5.72340477 | D95: 0.7331253478 | E95: =ThreePosition_Basic2($E$3,$E$5,$B$3:$C$3,$B$5:$C$5,B95,C95) -> 524.5922211 | F95: -337.83333 | G95: 248.6142516 | H95: 62.8186496 | I95: =ThreePosition_Basic2($E$3,$E$5,$B$3:$C$3,$B$5:$C$5,B95,D95) -> -24.48370126 | J95: -132.8250588 | K95: -300.4616707 | L95: 267.8269209
A96: 44 | B96: 0.7679448709 | C96: =Burmester($B$3:$C$3,$B$4:$C$4,$B$5:$C$5,$E$3,$E$4,$E$5,B96) -> 5.727643381 | D96: 0.7432037157 | E96: =ThreePosition_Basic2($E$3,$E$5,$B$3:$C$3,$B$5:$C$5,B96,C96) -> 520.553398 | F96: -335.0535117 | G96: 249.29037 | H96: 62.45517367 | I96: =ThreePosition_Basic2($E$3,$E$5,$B$3:$C$3,$B$5:$C$5,B96,D96) -> -25.25368205 | J96: -133.0022196 | K96: -296.5167101 | L96: 264.5064657
A97: 44.5 | B97: 0.7766715171 | C97: =Burmester($B$3:$C$3,$B$4:$C$4,$B$5:$C$5,$E$3,$E$4,$E$5,B97) -> 5.731863103 | D97: 0.7533117867 | E97: =ThreePosition_Basic2($E$3,$E$5,$B$3:$C$3,$B$5:$C$5,B97,C97) -> 516.6133473 | F97: -332.3358174 | G97: 249.9645092 | H97: 62.09674138 | I97: =ThreePosition_Basic2($E$3,$E$5,$B$3:$C$3,$B$5:$C$5,B97,D97) -> -26.01883269 | J97: -133.1859878 | K97: -292.6676708 | L97: 261.246571
A98: 45 | B98: 0.7853981634 | C98: =Burmester($B$3:$C$3,$B$4:$C$4,$B$5:$C$5,$E$3,$E$4,$E$5,B98) -> 5.736064334 | D98: 0.7634493204 | E98: =ThreePosition_Basic2($E$3,$E$5,$B$3:$C$3,$B$5:$C$5,B98,C98) -> 512.7686885 | F98: -329.6780219 | G98: 250.6366541 | H98: 61.74333437 | I98: =ThreePosition_Basic2($E$3,$E$5,$B$3:$C$3,$B$5:$C$5,B98,D98) -> -26.77912006 | J98: -133.376346 | K98: -288.9111544 | L98: 258.0450102
A99: 45.5 | B99: 0.7941248097 | C99: =Burmester($B$3:$C$3,$B$4:$C$4,$B$5:$C$5,$E$3,$E$4,$E$5,B99) -> 5.74024747 | D99: 0.7736160798 | E99: =ThreePosition_Basic2($E$3,$E$5,$B$3:$C$3,$B$5:$C$5,B99,C99) -> 509.01619 | F99: -327.0779988 | G99: 251.3067908 | H99: 61.39493401 | I99: =ThreePosition_Basic2($E$3,$E$5,$B$3:$C$3,$B$5:$C$5,B99,D99) -> -27.5345119 | J99: -133.5732768 | K99: -285.2439111 | L99: 254.899656
A100: 46 | B100: 0.8028514559 | C100: =Burmester($B$3:$C$3,$B$4:$C$4,$B$5:$C$5,$E$3,$E$4,$E$5,B100) -> 5.744412902 | D100: 0.7838118313 | E100: =ThreePosition_Basic2($E$3,$E$5,$B$3:$C$3,$B$5:$C$5,B100,C100) -> 505.3527614 | F100: -324.5337151 | G100: 251.9749065 | H100: 61.05152144 | I100: =ThreePosition_Basic2($E$3,$E$5,$B$3:$C$3,$B$5:$C$5,B100,D100) -> -28.28497673 | J100: -133.7767623 | K100: -281.6628316 | L100: 251.8084743
A101: 46.5 | B101: 0.8115781022 | C101: =Burmester($B$3:$C$3,$B$4:$C$4,$B$5:$C$5,$E$3,$E$4,$E$5,B101) -> 5.748561019 | D101: 0.7940363448 | E101: =ThreePosition_Basic2($E$3,$E$5,$B$3:$C$3,$B$5:$C$5,B101,C101) -> 501.7754453 | F101: -322.0432264 | G101: 252.6409894 | H101: 60.71307754 | I101: =ThreePosition_Basic2($E$3,$E$5,$B$3:$C$3,$B$5:$C$5,B101,D101) -> -29.03048387 | J101: -133.9867844 | K101: -278.1649398 | L101: 248.7695196
A102: 47 | B102: 0.8203047484 | C102: =Burmester($B$3:$C$3,$B$4:$C$4,$B$5:$C$5,$E$3,$E$4,$E$5,B102) -> 5.75269221 | D102: 0.8042893937 | E102: =ThreePosition_Basic2($E$3,$E$5,$B$3:$C$3,$B$5:$C$5,B102,C102) -> 498.2814109 | F102: -319.6046717 | G102: 253.3050288 | H102: 60.37958303 | I102: =ThreePosition_Basic2($E$3,$E$5,$B$3:$C$3,$B$5:$C$5,B102,D102) -> -29.77100339 | J102: -134.2033245 | K102: -274.7473855 | L102: 245.7809302
A103: 47.5 | B103: 0.8290313947 | C103: =Burmester($B$3:$C$3,$B$4:$C$4,$B$5:$C$5,$E$3,$E$4,$E$5,B103) -> 5.756806858 | D103: 0.8145707549 | E103: =ThreePosition_Basic2($E$3,$E$5,$B$3:$C$3,$B$5:$C$5,B103,C103) -> 494.867947 | F103: -317.2162695 | G103: 253.9670151 | H103: 60.05101844 | I103: =ThreePosition_Basic2($E$3,$E$5,$B$3:$C$3,$B$5:$C$5,B103,D103) -> -30.50650605 | J103: -134.426364 | K103: -271.4074379 | L103: 242.8409239
A104: 48 | B104: 0.837758041 | C104: =Burmester($B$3:$C$3,$B$4:$C$4,$B$5:$C$5,$E$3,$E$4,$E$5,B104) -> 5.760905344 | D104: 0.8248802089 | E104: =ThreePosition_Basic2($E$3,$E$5,$B$3:$C$3,$B$5:$C$5,B104,C104) -> 491.5324557 | F104: -314.8763133 | G104: 254.6269396 | H104: 59.72736414 | I104: =ThreePosition_Basic2($E$3,$E$5,$B$3:$C$3,$B$5:$C$5,B104,D104) -> -31.23696332 | J104: -134.6558838 | K104: -268.1424794 | L104: 239.9477936
A105: 48.5 | B105: 0.8464846872 | C105: =Burmester($B$3:$C$3,$B$4:$C$4,$B$5:$C$5,$E$3,$E$4,$E$5,B105) -> 5.764988047 | D105: 0.8352175398 | E105: =ThreePosition_Basic2($E$3,$E$5,$B$3:$C$3,$B$5:$C$5,B105,C105) -> 488.2724469 | F105: -312.5831679 | G105: 255.2847945 | H105: 59.40860039 | I105: =ThreePosition_Basic2($E$3,$E$5,$B$3:$C$3,$B$5:$C$5,B105,D105) -> -31.96234729 | J105: -134.8918648 | K105: -264.9499997 | L105: 237.0999035
A106: 49 | B106: 0.8552113335 | C106: =Burmester($B$3:$C$3,$B$4:$C$4,$B$5:$C$5,$E$3,$E$4,$E$5,B106) -> 5.769055344 | D106: 0.8455825352 | E106: =ThreePosition_Basic2($E$3,$E$5,$B$3:$C$3,$B$5:$C$5,B106,C106) -> 485.0855328 | F106: -310.3352658 | G106: 255.9405731 | H106: 59.09470735 | I106: =ThreePosition_Basic2($E$3,$E$5,$B$3:$C$3,$B$5:$C$5,B106,D106) -> -32.68263065 | J106: -135.1342875 | K106: -261.8275903 | L106: 234.2956856
A107: 49.5 | B107: 0.8639379797 | C107: =Burmester($B$3:$C$3,$B$4:$C$4,$B$5:$C$5,$E$3,$E$4,$E$5,B107) -> 5.773107607 | D107: 0.8559749864 | E107: =ThreePosition_Basic2($E$3,$E$5,$B$3:$C$3,$B$5:$C$5,B107,C107) -> 481.9694223 | F107: -308.1311035 | G107: 256.5942695 | H107: 58.78566508 | I107: =ThreePosition_Basic2($E$3,$E$5,$B$3:$C$3,$B$5:$C$5,B107,D107) -> -33.39778671 | J107: -135.3831323 | K107: -258.7729395 | L107: 231.5336362
A108: 50 | B108: 0.872664626 | C108: =Burmester($B$3:$C$3,$B$4:$C$4,$B$5:$C$5,$E$3,$E$4,$E$5,B108) -> 5.777145206 | D108: 0.8663946883 | E108: =ThreePosition_Basic2($E$3,$E$5,$B$3:$C$3,$B$5:$C$5,B108,C108) -> 478.9219168 | F108: -305.9692384 | G108: 257.2458787 | H108: 58.48145361 | I108: =ThreePosition_Basic2($E$3,$E$5,$B$3:$C$3,$B$5:$C$5,B108,D108) -> -34.1077893 | J108: -135.6383794 | K108: -255.7838274 | L108: 228.8123126
A109: 50.5 | B109: 0.8813912723 | C109: =Burmester($B$3:$C$3,$B$4:$C$4,$B$5:$C$5,$E$3,$E$4,$E$5,B109) -> 5.78116851 | D109: 0.8768414394 | E109: =ThreePosition_Basic2($E$3,$E$5,$B$3:$C$3,$B$5:$C$5,B109,C109) -> 475.9409051 | F109: -303.8482861 | G109: 257.8953965 | H109: 58.18205289 | I109: =ThreePosition_Basic2($E$3,$E$5,$B$3:$C$3,$B$5:$C$5,B109,D109) -> -34.81261276 | J109: -135.9000089 | K109: -252.8581213 | L109: 226.1303302
A110: 51 | B110: 0.8901179185 | C110: =Burmester($B$3:$C$3,$B$4:$C$4,$B$5:$C$5,$E$3,$E$4,$E$5,B110) -> 5.785177883 | D110: 0.887315042 | E110: =ThreePosition_Basic2($E$3,$E$5,$B$3:$C$3,$B$5:$C$5,B110,C110) -> 473.0243595 | F110: -301.766917 | G110: 258.5428197 | H110: 57.8874429 | I110: =ThreePosition_Basic2($E$3,$E$5,$B$3:$C$3,$B$5:$C$5,B110,D110) -> -35.51223193 | J110: -136.1680006 | K110: -249.9937718 | L110: 223.4863593
A111: 51.5 | B111: 0.8988445648 | C111: =Burmester($B$3:$C$3,$B$4:$C$4,$B$5:$C$5,$E$3,$E$4,$E$5,B111) -> 5.789173687 | D111: 0.8978153017 | E111: =ThreePosition_Basic2($E$3,$E$5,$B$3:$C$3,$B$5:$C$5,B111,C111) -> 470.1703317 | F111: -299.7238538 | G111: 259.1881456 | H111: 57.59760357 | I111: =ThreePosition_Basic2($E$3,$E$5,$B$3:$C$3,$B$5:$C$5,B111,D111) -> -36.20662212 | J111: -136.4423342 | K111: -247.1888082 | L111: 220.8791232
A112: 52 | B112: 0.907571211 | C112: =Burmester($B$3:$C$3,$B$4:$C$4,$B$5:$C$5,$E$3,$E$4,$E$5,B112) -> 5.793156281 | D112: 0.908342028 | E112: =ThreePosition_Basic2($E$3,$E$5,$B$3:$C$3,$B$5:$C$5,B112,C112) -> 467.3769487 | F112: -297.7178693 | G112: 259.8313725 | H112: 57.31251489 | I112: =ThreePosition_Basic2($E$3,$E$5,$B$3:$C$3,$B$5:$C$5,B112,D112) -> -36.89575902 | J112: -136.7229896 | K112: -244.4413353 | L112: 218.3073946
A113: 52.5 | B113: 0.9162978573 | C113: =Burmester($B$3:$C$3,$B$4:$C$4,$B$5:$C$5,$E$3,$E$4,$E$5,B113) -> 5.797126023 | D113: 0.918895034 | E113: =ThreePosition_Basic2($E$3,$E$5,$B$3:$C$3,$B$5:$C$5,B113,C113) -> 464.6424095 | F113: -295.7477833 | G113: 260.4724992 | H113: 57.03215687 | I113: =ThreePosition_Basic2($E$3,$E$5,$B$3:$C$3,$B$5:$C$5,B113,D113) -> -37.57961875 | J113: -137.009946 | K113: -241.749529 | L113: 215.7699942
A114: 53 | B114: 0.9250245036 | C114: =Burmester($B$3:$C$3,$B$4:$C$4,$B$5:$C$5,$E$3,$E$4,$E$5,B114) -> 5.801083266 | D114: 0.9294741363 | E114: =ThreePosition_Basic2($E$3,$E$5,$B$3:$C$3,$B$5:$C$5,B114,C114) -> 461.9649818 | F114: -293.8124612 | G114: 261.1115255 | H114: 56.75650958 | I114: =ThreePosition_Basic2($E$3,$E$5,$B$3:$C$3,$B$5:$C$5,B114,D114) -> -38.25817779 | J114: -137.3031831 | K114: -239.111634 | L114: 213.2657877
A115: 53.5 | B115: 0.9337511498 | C115: =Burmester($B$3:$C$3,$B$4:$C$4,$B$5:$C$5,$E$3,$E$4,$E$5,B115) -> 5.80502836 | D115: 0.9400791553 | E115: =ThreePosition_Basic2($E$3,$E$5,$B$3:$C$3,$B$5:$C$5,B115,C115) -> 459.3429984 | F115: -291.9108113 | G115: 261.7484517 | H115: 56.48555314 | I115: =ThreePosition_Basic2($E$3,$E$5,$B$3:$C$3,$B$5:$C$5,B115,D115) -> -38.93141295 | J115: -137.6026801 | K115: -236.5259596 | L115: 210.7936843
A116: 54 | B116: 0.9424777961 | C116: =Burmester($B$3:$C$3,$B$4:$C$4,$B$5:$C$5,$E$3,$E$4,$E$5,B116) -> 5.808961656 | D116: 0.9507099148 | E116: =ThreePosition_Basic2($E$3,$E$5,$B$3:$C$3,$B$5:$C$5,B116,C116) -> 456.7748546 | F116: -290.0417827 | G116: 262.3832788 | H116: 56.2192678 | I116: =ThreePosition_Basic2($E$3,$E$5,$B$3:$C$3,$B$5:$C$5,B116,D116) -> -39.59930135 | J116: -137.9084164 | K116: -233.9908772 | L116: 208.3526342
A117: 54.5 | B117: 0.9512044423 | C117: =Burmester($B$3:$C$3,$B$4:$C$4,$B$5:$C$5,$E$3,$E$4,$E$5,B117) -> 5.812883498 | D117: 0.9613662423 | E117: =ThreePosition_Basic2($E$3,$E$5,$B$3:$C$3,$B$5:$C$5,B117,C117) -> 454.2590052 | F117: -288.204364 | G117: 263.0160084 | H117: 55.95763388 | I117: =ThreePosition_Basic2($E$3,$E$5,$B$3:$C$3,$B$5:$C$5,B117,D117) -> -40.2618204 | J117: -138.2203711 | K117: -231.5048173 | L117: 205.9416268
A118: 55 | B118: 0.9599310886 | C118: =Burmester($B$3:$C$3,$B$4:$C$4,$B$5:$C$5,$E$3,$E$4,$E$5,B118) -> 5.816794231 | D118: 0.972047969 | E118: =ThreePosition_Basic2($E$3,$E$5,$B$3:$C$3,$B$5:$C$5,B118,C118) -> 451.7939617 | F118: -286.3975809 | G118: 263.6466427 | H118: 55.70063184 | I118: =ThreePosition_Basic2($E$3,$E$5,$B$3:$C$3,$B$5:$C$5,B118,D118) -> -40.91894774 | J118: -138.5385234 | K118: -229.0662668 | L118: 203.5596893
A119: 55.5 | B119: 0.9686577349 | C119: =Burmester($B$3:$C$3,$B$4:$C$4,$B$5:$C$5,$E$3,$E$4,$E$5,B119) -> 5.820694194 | D119: 0.9827549293 | E119: =ThreePosition_Basic2($E$3,$E$5,$B$3:$C$3,$B$5:$C$5,B119,C119) -> 449.3782898 | F119: -284.6204946 | G119: 264.2751845 | H119: 55.44824227 | I119: =ThreePosition_Basic2($E$3,$E$5,$B$3:$C$3,$B$5:$C$5,B119,D119) -> -41.57066128 | J119: -138.8628525 | K119: -226.6737666 | L119: 201.2058844
A120: 56 | B120: 0.9773843811 | C120: =Burmester($B$3:$C$3,$B$4:$C$4,$B$5:$C$5,$E$3,$E$4,$E$5,B120) -> 5.824583725 | D120: 0.9934869615 | E120: =ThreePosition_Basic2($E$3,$E$5,$B$3:$C$3,$B$5:$C$5,B120,C120) -> 447.010607 | F120: -282.8722006 | G120: 264.9016372 | H120: 55.20044589 | I120: =ThreePosition_Basic2($E$3,$E$5,$B$3:$C$3,$B$5:$C$5,B120,D120) -> -42.21693908 | J120: -139.1933374 | K120: -224.3259089 | L120: 198.8793091
A121: 56.5 | B121: 0.9861110274 | C121: =Burmester($B$3:$C$3,$B$4:$C$4,$B$5:$C$5,$E$3,$E$4,$E$5,B121) -> 5.828463161 | D121: 1.004243907 | E121: =ThreePosition_Basic2($E$3,$E$5,$B$3:$C$3,$B$5:$C$5,B121,C121) -> 444.6895804 | F121: -281.1518268 | G121: 265.5260048 | H121: 54.95722362 | I121: =ThreePosition_Basic2($E$3,$E$5,$B$3:$C$3,$B$5:$C$5,B121,D121) -> -42.85775942 | J121: -139.5299572 | K121: -222.0213351 | L121: 196.5790932
A122: 57 | B122: 0.9948376736 | C122: =Burmester($B$3:$C$3,$B$4:$C$4,$B$5:$C$5,$E$3,$E$4,$E$5,B122) -> 5.832332835 | D122: 1.015025612 | E122: =ThreePosition_Basic2($E$3,$E$5,$B$3:$C$3,$B$5:$C$5,B122,C122) -> 442.4139244 | F122: -279.4585321 | G122: 266.1482915 | H122: 54.71855652 | I122: =ThreePosition_Basic2($E$3,$E$5,$B$3:$C$3,$B$5:$C$5,B122,D122) -> -43.4931007 | J122: -139.872691 | K122: -219.7587336 | L122: 194.3043976
A123: 57.5 | B123: 1.00356432 | C123: =Burmester($B$3:$C$3,$B$4:$C$4,$B$5:$C$5,$E$3,$E$4,$E$5,B123) -> 5.836193076 | D123: 1.025831923 | E123: =ThreePosition_Basic2($E$3,$E$5,$B$3:$C$3,$B$5:$C$5,B123,C123) -> 440.1823987 | F123: -277.791505 | G123: 266.7685024 | H123: 54.48442587 | I123: =ThreePosition_Basic2($E$3,$E$5,$B$3:$C$3,$B$5:$C$5,B123,D123) -> -44.12294146 | J123: -140.2215178 | K123: -217.5368377 | L123: 192.054413
A124: 58 | B124: 1.012290966 | C124: =Burmester($B$3:$C$3,$B$4:$C$4,$B$5:$C$5,$E$3,$E$4,$E$5,B124) -> 5.840044214 | D124: 1.036662695 | E124: =ThreePosition_Basic2($E$3,$E$5,$B$3:$C$3,$B$5:$C$5,B124,C124) -> 437.9938062 | F124: -276.1499624 | G124: 267.3866429 | H124: 54.25481313 | I124: =ThreePosition_Basic2($E$3,$E$5,$B$3:$C$3,$B$5:$C$5,B124,D124) -> -44.74726035 | J124: -140.5764166 | K124: -215.3544236 | L124: 189.8283589
A125: 58.5 | B125: 1.021017612 | C125: =Burmester($B$3:$C$3,$B$4:$C$4,$B$5:$C$5,$E$3,$E$4,$E$5,B125) -> 5.843886573 | D125: 1.047517781 | E125: =ThreePosition_Basic2($E$3,$E$5,$B$3:$C$3,$B$5:$C$5,B125,C125) -> 435.8469914 | F125: -274.5331485 | G125: 268.0027187 | H125: 54.02969999 | I125: =ThreePosition_Basic2($E$3,$E$5,$B$3:$C$3,$B$5:$C$5,B125,D125) -> -45.36603608 | J125: -140.9373665 | K125: -213.2103088 | L125: 187.625482
A126: 59 | B126: 1.029744259 | C126: =Burmester($B$3:$C$3,$B$4:$C$4,$B$5:$C$5,$E$3,$E$4,$E$5,B126) -> 5.847720478 | D126: 1.058397041 | E126: =ThreePosition_Basic2($E$3,$E$5,$B$3:$C$3,$B$5:$C$5,B126,C126) -> 433.7408386 | F126: -272.9403333 | G126: 268.6167361 | H126: 53.80906834 | I126: =ThreePosition_Basic2($E$3,$E$5,$B$3:$C$3,$B$5:$C$5,B126,D126) -> -45.97924742 | J126: -141.3043465 | K126: -211.1033499 | L126: 185.4450552
A127: 59.5 | B127: 1.038470905 | C127: =Burmester($B$3:$C$3,$B$4:$C$4,$B$5:$C$5,$E$3,$E$4,$E$5,B127) -> 5.851546249 | D127: 1.069300337 | E127: =ThreePosition_Basic2($E$3,$E$5,$B$3:$C$3,$B$5:$C$5,B127,C127) -> 431.6742699 | F127: -271.3708117 | G127: 269.2287019 | H127: 53.59290033 | I127: =ThreePosition_Basic2($E$3,$E$5,$B$3:$C$3,$B$5:$C$5,B127,D127) -> -46.58687318 | J127: -141.6773355 | K127: -209.0324412 | L127: 183.2863765
A128: 60 | B128: 1.047197551 | C128: =Burmester($B$3:$C$3,$B$4:$C$4,$B$5:$C$5,$E$3,$E$4,$E$5,B128) -> 5.855364205 | D128: 1.080227534 | E128: =ThreePosition_Basic2($E$3,$E$5,$B$3:$C$3,$B$5:$C$5,B128,C128) -> 429.6462441 | F128: -269.8239024 | G128: 269.838623 | H128: 53.38117835 | I128: =ThreePosition_Basic2($E$3,$E$5,$B$3:$C$3,$B$5:$C$5,B128,D128) -> -47.18889219 | J128: -142.0563128 | K128: -206.9965133 | L128: 181.148768
A129: 60.5 | B129: 1.055924197 | C129: =Burmester($B$3:$C$3,$B$4:$C$4,$B$5:$C$5,$E$3,$E$4,$E$5,B129) -> 5.859174663 | D129: 1.091178502 | E129: =ThreePosition_Basic2($E$3,$E$5,$B$3:$C$3,$B$5:$C$5,B129,C129) -> 427.6557549 | F129: -268.2989469 | G129: 270.4465069 | H129: 53.17388504 | I129: =ThreePosition_Basic2($E$3,$E$5,$B$3:$C$3,$B$5:$C$5,B129,D129) -> -47.78528323 | J129: -142.4412572 | K129: -204.9945312 | L129: 179.0315748
A130: 61 | B130: 1.064650844 | C130: =Burmester($B$3:$C$3,$B$4:$C$4,$B$5:$C$5,$E$3,$E$4,$E$5,B130) -> 5.862977937 | D130: 1.102153113 | E130: =ThreePosition_Basic2($E$3,$E$5,$B$3:$C$3,$B$5:$C$5,B130,C130) -> 425.7018293 | F130: -266.7953086 | G130: 271.0523614 | H130: 52.97100332 | I130: =ThreePosition_Basic2($E$3,$E$5,$B$3:$C$3,$B$5:$C$5,B130,D130) -> -48.3760251 | J130: -142.832148 | K130: -203.025493 | L130: 176.934164
A131: 61.5 | B131: 1.07337749 | C131: =Burmester($B$3:$C$3,$B$4:$C$4,$B$5:$C$5,$E$3,$E$4,$E$5,B131) -> 5.866774339 | D131: 1.113151241 | E131: =ThreePosition_Basic2($E$3,$E$5,$B$3:$C$3,$B$5:$C$5,B131,C131) -> 423.7835268 | F131: -265.3123717 | G131: 271.6561946 | H131: 52.77251638 | I131: =ThreePosition_Basic2($E$3,$E$5,$B$3:$C$3,$B$5:$C$5,B131,D131) -> -48.96109651 | J131: -143.2289641 | K131: -201.0884286 | L131: 174.855924
A132: 62 | B132: 1.082104136 | C132: =Burmester($B$3:$C$3,$B$4:$C$4,$B$5:$C$5,$E$3,$E$4,$E$5,B132) -> 5.870564179 | D132: 1.124172766 | E132: =ThreePosition_Basic2($E$3,$E$5,$B$3:$C$3,$B$5:$C$5,B132,C132) -> 421.8999374 | F132: -263.8495406 | G132: 272.258015 | H132: 52.57840768 | I132: =ThreePosition_Basic2($E$3,$E$5,$B$3:$C$3,$B$5:$C$5,B132,D132) -> -49.54047611 | J132: -143.6316848 | K132: -199.1823985 | L132: 172.7962634
A133: 62.5 | B133: 1.090830782 | C133: =Burmester($B$3:$C$3,$B$4:$C$4,$B$5:$C$5,$E$3,$E$4,$E$5,B133) -> 5.874347766 | D133: 1.135217569 | E133: =ThreePosition_Basic2($E$3,$E$5,$B$3:$C$3,$B$5:$C$5,B133,C133) -> 420.0501809 | F133: -262.4062387 | G133: 272.8578313 | H133: 52.38866099 | I133: =ThreePosition_Basic2($E$3,$E$5,$B$3:$C$3,$B$5:$C$5,B133,D133) -> -50.11414246 | J133: -144.0402891 | K133: -197.3064921 | L133: 170.7546106
A134: 63 | B134: 1.099557429 | C134: =Burmester($B$3:$C$3,$B$4:$C$4,$B$5:$C$5,$E$3,$E$4,$E$5,B134) -> 5.878125405 | D134: 1.146285536 | E134: =ThreePosition_Basic2($E$3,$E$5,$B$3:$C$3,$B$5:$C$5,B134,C134) -> 418.2334055 | F134: -260.9819083 | G134: 273.4556524 | H134: 52.20326039 | I134: =ThreePosition_Basic2($E$3,$E$5,$B$3:$C$3,$B$5:$C$5,B134,D134) -> -50.68207401 | J134: -144.4547562 | K134: -195.4598271 | L134: 168.7304125
A135: 63.5 | B135: 1.108284075 | C135: =Burmester($B$3:$C$3,$B$4:$C$4,$B$5:$C$5,$E$3,$E$4,$E$5,B135) -> 5.8818974 | D135: 1.157376553 | E135: =ThreePosition_Basic2($E$3,$E$5,$B$3:$C$3,$B$5:$C$5,B135,C135) -> 416.4487867 | F135: -259.576009 | G135: 274.0514878 | H135: 52.02219025 | I135: =ThreePosition_Basic2($E$3,$E$5,$B$3:$C$3,$B$5:$C$5,B135,D135) -> -51.24424907 | J135: -144.8750654 | K135: -193.641548 | L135: 166.7231339
A136: 64 | B136: 1.117010721 | C136: =Burmester($B$3:$C$3,$B$4:$C$4,$B$5:$C$5,$E$3,$E$4,$E$5,B136) -> 5.885664053 | D136: 1.168490512 | E136: =ThreePosition_Basic2($E$3,$E$5,$B$3:$C$3,$B$5:$C$5,B136,C136) -> 414.6955263 | F136: -258.1880176 | G136: 274.6453469 | H136: 51.84543527 | I136: =ThreePosition_Basic2($E$3,$E$5,$B$3:$C$3,$B$5:$C$5,B136,D136) -> -51.80064582 | J136: -145.3011957 | K136: -191.8508252 | L136: 164.7322572
A137: 64.5 | B137: =A137*PI()/180 -> 1.125737368 | C137: =Burmester($B$3:$C$3,$B$4:$C$4,$B$5:$C$5,$E$3,$E$4,$E$5,B137) -> 5.889425666 | D137: 1.179627306 | E137: =ThreePosition_Basic2($E$3,$E$5,$B$3:$C$3,$B$5:$C$5,B137,C137) -> 412.9728511 | F137: -256.8174272 | G137: 275.2372396 | H137: 51.67298046 | I137: =ThreePosition_Basic2($E$3,$E$5,$B$3:$C$3,$B$5:$C$5,B137,D137) -> -52.35124225 | J137: -145.7331264 | K137: -190.0868538 | L137: 162.7572813
A138: 65 | B138: 1.134464014 | C138: =Burmester($B$3:$C$3,$B$4:$C$4,$B$5:$C$5,$E$3,$E$4,$E$5,B138) -> 5.893182535 | D138: 1.190786834 | E138: =ThreePosition_Basic2($E$3,$E$5,$B$3:$C$3,$B$5:$C$5,B138,C138) -> 411.2800123 | F138: -255.4637465 | G138: 275.8271757 | H138: 51.5048112 | I138: =ThreePosition_Basic2($E$3,$E$5,$B$3:$C$3,$B$5:$C$5,B138,D138) -> -52.89601618 | J138: -146.1708368 | K138: -188.3488528 | L138: 160.7977209
A139: 65.5 | B139: 1.14319066 | C139: =Burmester($B$3:$C$3,$B$4:$C$4,$B$5:$C$5,$E$3,$E$4,$E$5,B139) -> 5.896934957 | D139: 1.201968994 | E139: =ThreePosition_Basic2($E$3,$E$5,$B$3:$C$3,$B$5:$C$5,B139,C139) -> 409.6162843 | F139: -254.1264994 | G139: 276.4151656 | H139: 51.34091316 | I139: =ThreePosition_Basic2($E$3,$E$5,$B$3:$C$3,$B$5:$C$5,B139,D139) -> -53.43494525 | J139: -146.614306 | K139: -186.636064 | L139: 158.8531065
A140: 66 | B140: 1.151917306 | C140: =Burmester($B$3:$C$3,$B$4:$C$4,$B$5:$C$5,$E$3,$E$4,$E$5,B140) -> 5.900683228 | D140: 1.213173689 | E140: =ThreePosition_Basic2($E$3,$E$5,$B$3:$C$3,$B$5:$C$5,B140,C140) -> 407.9809641 | F140: -252.805224 | G140: 277.0012195 | H140: 51.18127238 | I140: =ThreePosition_Basic2($E$3,$E$5,$B$3:$C$3,$B$5:$C$5,B140,D140) -> -53.96800684 | J140: -147.0635134 | K140: -184.9477514 | L140: 156.9229829
A141: 66.5 | B141: 1.160643953 | C141: =Burmester($B$3:$C$3,$B$4:$C$4,$B$5:$C$5,$E$3,$E$4,$E$5,B141) -> 5.90442764 | D141: 1.224400825 | E141: =ThreePosition_Basic2($E$3,$E$5,$B$3:$C$3,$B$5:$C$5,B141,C141) -> 406.37337 | F141: -251.4994726 | G141: 277.5853481 | H141: 51.02587527 | I141: =ThreePosition_Basic2($E$3,$E$5,$B$3:$C$3,$B$5:$C$5,B141,D141) -> -54.49517814 | J141: -147.5184383 | K141: -183.2832 | L141: 155.0069096
A142: 67 | B142: 1.169370599 | C142: =Burmester($B$3:$C$3,$B$4:$C$4,$B$5:$C$5,$E$3,$E$4,$E$5,B142) -> 5.908168485 | D142: 1.23565031 | E142: =ThreePosition_Basic2($E$3,$E$5,$B$3:$C$3,$B$5:$C$5,B142,C142) -> 404.7928412 | F142: -250.2088108 | G142: 278.1675622 | H142: 50.87470856 | I142: =ThreePosition_Basic2($E$3,$E$5,$B$3:$C$3,$B$5:$C$5,B142,D142) -> -55.01643607 | J142: -147.9790599 | K142: -181.6417151 | L142: 153.1044595
A143: 67.5 | B143: 1.178097245 | C143: =Burmester($B$3:$C$3,$B$4:$C$4,$B$5:$C$5,$E$3,$E$4,$E$5,B143) -> 5.911906053 | D143: 1.246922055 | E143: =ThreePosition_Basic2($E$3,$E$5,$B$3:$C$3,$B$5:$C$5,B143,C143) -> 403.2387369 | F143: -248.9328169 | G143: 278.7478725 | H143: 50.72775937 | I143: =ThreePosition_Basic2($E$3,$E$5,$B$3:$C$3,$B$5:$C$5,B143,D143) -> -55.53175729 | J143: -148.4453575 | K143: -180.0226217 | L143: 151.2152188
A144: 68 | B144: 1.186823891 | C144: =Burmester($B$3:$C$3,$B$4:$C$4,$B$5:$C$5,$E$3,$E$4,$E$5,B144) -> 5.915640632 | D144: 1.258215974 | E144: =ThreePosition_Basic2($E$3,$E$5,$B$3:$C$3,$B$5:$C$5,B144,C144) -> 401.7104354 | F144: -247.6710817 | G144: 279.3262901 | H144: 50.58501518 | I144: =ThreePosition_Basic2($E$3,$E$5,$B$3:$C$3,$B$5:$C$5,B144,D144) -> -56.04111819 | J144: -148.9173104 | K144: -178.4252635 | L144: 149.3387865
A145: 68.5 | B145: 1.195550538 | C145: =Burmester($B$3:$C$3,$B$4:$C$4,$B$5:$C$5,$E$3,$E$4,$E$5,B145) -> 5.919372509 | D145: 1.269531984 | E145: =ThreePosition_Basic2($E$3,$E$5,$B$3:$C$3,$B$5:$C$5,B145,C145) -> 400.2073336 | F145: -246.4232078 | G145: 279.9028261 | H145: 50.44646384 | I145: =ThreePosition_Basic2($E$3,$E$5,$B$3:$C$3,$B$5:$C$5,B145,D145) -> -56.54449485 | J145: -149.3948979 | K145: -176.8490023 | L145: 147.4747737
A146: 69 | B146: 1.204277184 | C146: =Burmester($B$3:$C$3,$B$4:$C$4,$B$5:$C$5,$E$3,$E$4,$E$5,B146) -> 5.92310197 | D146: 1.280870004 | E146: =ThreePosition_Basic2($E$3,$E$5,$B$3:$C$3,$B$5:$C$5,B146,C146) -> 398.7288462 | F146: -245.1888093 | G146: 280.4774919 | H146: 50.31209359 | I146: =ThreePosition_Basic2($E$3,$E$5,$B$3:$C$3,$B$5:$C$5,B146,D146) -> -57.04186307 | J146: -149.8780992 | K146: -175.2932174 | L146: 145.6228036
A147: 69.5 | B147: 1.21300383 | C147: =Burmester($B$3:$C$3,$B$4:$C$4,$B$5:$C$5,$E$3,$E$4,$E$5,B147) -> 5.926829298 | D147: 1.292229955 | E147: =ThreePosition_Basic2($E$3,$E$5,$B$3:$C$3,$B$5:$C$5,B147,C147) -> 397.2744053 | F147: -243.9675113 | G147: 281.0502988 | H147: 50.18189305 | I147: =ThreePosition_Basic2($E$3,$E$5,$B$3:$C$3,$B$5:$C$5,B147,D147) -> -57.53319831 | J147: -150.3668937 | K147: -173.7573048 | L147: 143.7825106
A148: 70 | B148: 1.221730476 | C148: =Burmester($B$3:$C$3,$B$4:$C$4,$B$5:$C$5,$E$3,$E$4,$E$5,B148) -> 5.930554776 | D148: 1.303611762 | E148: =ThreePosition_Basic2($E$3,$E$5,$B$3:$C$3,$B$5:$C$5,B148,C148) -> 395.8434591 | F148: -242.7589494 | G148: 281.6212581 | H148: 50.05585123 | I148: =ThreePosition_Basic2($E$3,$E$5,$B$3:$C$3,$B$5:$C$5,B148,D148) -> -58.01847571 | J148: -150.8612605 | K148: -172.2406767 | L148: 141.9535401
A149: 70.5 | B149: 1.230457123 | C149: =Burmester($B$3:$C$3,$B$4:$C$4,$B$5:$C$5,$E$3,$E$4,$E$5,B149) -> 5.934278686 | D149: 1.315015352 | E149: =ThreePosition_Basic2($E$3,$E$5,$B$3:$C$3,$B$5:$C$5,B149,C149) -> 394.4354724 | F149: -241.5627697 | G149: 282.1903815 | H149: 49.93395753 | I149: =ThreePosition_Basic2($E$3,$E$5,$B$3:$C$3,$B$5:$C$5,B149,D149) -> -58.49767006 | J149: -151.3611789 | K149: -170.7427609 | L149: 140.1355483
A150: 71 | B150: 1.239183769 | C150: =Burmester($B$3:$C$3,$B$4:$C$4,$B$5:$C$5,$E$3,$E$4,$E$5,B150) -> 5.938001308 | D150: 1.326440653 | E150: =ThreePosition_Basic2($E$3,$E$5,$B$3:$C$3,$B$5:$C$5,B150,C150) -> 393.0499248 | F150: -240.3786277 | G150: 282.7576806 | H150: 49.81620174 | I150: =ThreePosition_Basic2($E$3,$E$5,$B$3:$C$3,$B$5:$C$5,B150,D150) -> -58.97075579 | J150: -151.8666281 | K150: -169.263 | L150: 138.3282014
A151: 71.5 | B151: 1.247910415 | C151: =Burmester($B$3:$C$3,$B$4:$C$4,$B$5:$C$5,$E$3,$E$4,$E$5,B151) -> 5.94172292 | D151: 1.337887597 | E151: =ThreePosition_Basic2($E$3,$E$5,$B$3:$C$3,$B$5:$C$5,B151,C151) -> 391.686311 | F151: -239.2061887 | G151: 283.3231669 | H151: 49.70257408 | I151: =ThreePosition_Basic2($E$3,$E$5,$B$3:$C$3,$B$5:$C$5,B151,D151) -> -59.43770697 | J151: -152.3775871 | K151: -167.8008511 | L151: 136.5311757
A152: 72 | B152: 1.256637061 | C152: =Burmester($B$3:$C$3,$B$4:$C$4,$B$5:$C$5,$E$3,$E$4,$E$5,B152) -> 5.9454438 | D152: 1.349356118 | E152: =ThreePosition_Basic2($E$3,$E$5,$B$3:$C$3,$B$5:$C$5,B152,C152) -> 390.3441403 | F152: -238.0451269 | G152: 283.8868522 | H152: 49.59306513 | I152: =ThreePosition_Basic2($E$3,$E$5,$B$3:$C$3,$B$5:$C$5,B152,D152) -> -59.89849728 | J152: -152.8940351 | K152: -166.3557854 | L152: 134.744157
A153: 72.5 | B153: 1.265363708 | C153: =Burmester($B$3:$C$3,$B$4:$C$4,$B$5:$C$5,$E$3,$E$4,$E$5,B153) -> 5.949164226 | D153: 1.360846153 | E153: =ThreePosition_Basic2($E$3,$E$5,$B$3:$C$3,$B$5:$C$5,B153,C153) -> 389.0229353 | F153: -236.8951255 | G153: 284.4487482 | H153: 49.48766593 | I153: =ThreePosition_Basic2($E$3,$E$5,$B$3:$C$3,$B$5:$C$5,B153,D153) -> -60.35310002 | J153: -153.4159511 | K153: -164.9272871 | L153: 132.9668403
A154: 73 | B154: 1.274090354 | C154: =Burmester($B$3:$C$3,$B$4:$C$4,$B$5:$C$5,$E$3,$E$4,$E$5,B154) -> 5.952884473 | D154: 1.37235764 | E154: =ThreePosition_Basic2($E$3,$E$5,$B$3:$C$3,$B$5:$C$5,B154,C154) -> 387.7222324 | F154: -235.7558759 | G154: 285.0088667 | H154: 49.3863679 | I154: =ThreePosition_Basic2($E$3,$E$5,$B$3:$C$3,$B$5:$C$5,B154,D154) -> -60.80148807 | J154: -153.943314 | K154: -163.5148538 | L154: 131.1989298
A155: 73.5 | B155: 1.282817 | C155: =Burmester($B$3:$C$3,$B$4:$C$4,$B$5:$C$5,$E$3,$E$4,$E$5,B155) -> 5.956604815 | D155: 1.38389052 | E155: =ThreePosition_Basic2($E$3,$E$5,$B$3:$C$3,$B$5:$C$5,B155,C155) -> 386.4415806 | F155: -234.6270779 | G155: 285.5672195 | H155: 49.28916289 | I155: =ThreePosition_Basic2($E$3,$E$5,$B$3:$C$3,$B$5:$C$5,B155,D155) -> -61.24363392 | J155: -154.4761029 | K155: -162.1179951 | L155: 129.4401379
A156: 74 | B156: 1.291543646 | C156: =Burmester($B$3:$C$3,$B$4:$C$4,$B$5:$C$5,$E$3,$E$4,$E$5,B156) -> 5.960325527 | D156: 1.395444735 | E156: =ThreePosition_Basic2($E$3,$E$5,$B$3:$C$3,$B$5:$C$5,B156,C156) -> 385.1805415 | F156: -233.508439 | G156: 286.1238183 | H156: 49.19604317 | I156: =ThreePosition_Basic2($E$3,$E$5,$B$3:$C$3,$B$5:$C$5,B156,D156) -> -61.67950961 | J156: -155.0142964 | K156: -160.7362329 | L156: 127.6901857
A157: 74.5 | B157: 1.300270293 | C157: =Burmester($B$3:$C$3,$B$4:$C$4,$B$5:$C$5,$E$3,$E$4,$E$5,B157) -> 5.964046881 | D157: 1.407020231 | E157: =ThreePosition_Basic2($E$3,$E$5,$B$3:$C$3,$B$5:$C$5,B157,C157) -> 383.9386885 | F157: -232.3996744 | G157: 286.6786748 | H157: 49.10700142 | I157: =ThreePosition_Basic2($E$3,$E$5,$B$3:$C$3,$B$5:$C$5,B157,D157) -> -62.10908678 | J157: -155.5578734 | K157: -159.3691005 | L157: 125.9488024
A158: 75 | B158: 1.308996939 | C158: =Burmester($B$3:$C$3,$B$4:$C$4,$B$5:$C$5,$E$3,$E$4,$E$5,B158) -> 5.96776915 | D158: 1.418616956 | E158: =ThreePosition_Basic2($E$3,$E$5,$B$3:$C$3,$B$5:$C$5,B158,C158) -> 382.7156069 | F158: -231.3005065 | G158: 287.231801 | H158: 49.02203075 | I158: =ThreePosition_Basic2($E$3,$E$5,$B$3:$C$3,$B$5:$C$5,B158,D158) -> -62.53233659 | J158: -156.1068124 | K158: -158.0161425 | L158: 124.2157249
A159: 75.5 | B159: 1.317723585 | C159: =Burmester($B$3:$C$3,$B$4:$C$4,$B$5:$C$5,$E$3,$E$4,$E$5,B159) -> 5.971492604 | D159: 1.430234857 | E159: =ThreePosition_Basic2($E$3,$E$5,$B$3:$C$3,$B$5:$C$5,B159,C159) -> 381.5108929 | F159: -230.2106649 | G159: 287.7832084 | H159: 48.94112473 | I159: =ThreePosition_Basic2($E$3,$E$5,$B$3:$C$3,$B$5:$C$5,B159,D159) -> -62.94922978 | J159: -156.661092 | K159: -156.6769143 | L159: 122.4906977
A160: 76 | B160: 1.326450232 | C160: =Burmester($B$3:$C$3,$B$4:$C$4,$B$5:$C$5,$E$3,$E$4,$E$5,B160) -> 5.975217514 | D160: 1.441873886 | E160: =ThreePosition_Basic2($E$3,$E$5,$B$3:$C$3,$B$5:$C$5,B160,C160) -> 380.3241537 | F160: -229.1298859 | G160: 288.3329089 | H160: 48.86427732 | I160: =ThreePosition_Basic2($E$3,$E$5,$B$3:$C$3,$B$5:$C$5,B160,D160) -> -63.35973661 | J160: -157.2206906 | K160: -155.3509814 | L160: 120.7734727
A161: 76.5 | B161: 1.335176878 | C161: =Burmester($B$3:$C$3,$B$4:$C$4,$B$5:$C$5,$E$3,$E$4,$E$5,B161) -> 5.97894415 | D161: 1.453533997 | E161: =ThreePosition_Basic2($E$3,$E$5,$B$3:$C$3,$B$5:$C$5,B161,C161) -> 379.155007 | F161: -228.0579123 | G161: 288.8809141 | H161: 48.79148294 | I161: =ThreePosition_Basic2($E$3,$E$5,$B$3:$C$3,$B$5:$C$5,B161,D161) -> -63.76382689 | J161: -157.7855864 | K161: -154.0379198 | L161: 119.0638089
A162: 77 | B162: 1.343903524 | C162: =Burmester($B$3:$C$3,$B$4:$C$4,$B$5:$C$5,$E$3,$E$4,$E$5,B162) -> 5.982672781 | D162: 1.465215144 | E162: =ThreePosition_Basic2($E$3,$E$5,$B$3:$C$3,$B$5:$C$5,B162,C162) -> 378.0030804 | F162: -226.9944935 | G162: 289.4272356 | H162: 48.72273643 | I162: =ThreePosition_Basic2($E$3,$E$5,$B$3:$C$3,$B$5:$C$5,B162,D162) -> -64.16146994 | J162: -158.3557576 | K162: -152.7373148 | L162: 117.3614723
A163: 77.5 | B163: 1.35263017 | C163: =Burmester($B$3:$C$3,$B$4:$C$4,$B$5:$C$5,$E$3,$E$4,$E$5,B163) -> 5.986403676 | D163: 1.476917284 | E163: =ThreePosition_Basic2($E$3,$E$5,$B$3:$C$3,$B$5:$C$5,B163,C163) -> 376.8680116 | F163: -225.9393846 | G163: 289.971885 | H163: 48.6580331 | I163: =ThreePosition_Basic2($E$3,$E$5,$B$3:$C$3,$B$5:$C$5,B163,D163) -> -64.55263461 | J163: -158.9311822 | K163: -151.4487612 | L163: 115.6662355
A164: 78 | B164: 1.361356817 | C164: =Burmester($B$3:$C$3,$B$4:$C$4,$B$5:$C$5,$E$3,$E$4,$E$5,B164) -> 5.990137103 | D164: 1.488640376 | E164: =ThreePosition_Basic2($E$3,$E$5,$B$3:$C$3,$B$5:$C$5,B164,C164) -> 375.7494474 | F164: -224.892347 | G164: 290.5148739 | H164: 48.59736867 | I164: =ThreePosition_Basic2($E$3,$E$5,$B$3:$C$3,$B$5:$C$5,B164,D164) -> -64.93728925 | J164: -159.511838 | K164: -150.1718627 | L164: 113.9778777
A165: 78.5 | B165: 1.370083463 | C165: =Burmester($B$3:$C$3,$B$4:$C$4,$B$5:$C$5,$E$3,$E$4,$E$5,B165) -> 5.99387333 | D165: 1.50038438 | E165: =ThreePosition_Basic2($E$3,$E$5,$B$3:$C$3,$B$5:$C$5,B165,C165) -> 374.647044 | F165: -223.8531475 | G165: 291.0562137 | H165: 48.54073933 | I165: =ThreePosition_Basic2($E$3,$E$5,$B$3:$C$3,$B$5:$C$5,B165,D165) -> -65.31540171 | J165: -160.0977026 | K165: -148.906232 | L165: 112.2961843
A166: 79 | B166: 1.378810109 | C166: =Burmester($B$3:$C$3,$B$4:$C$4,$B$5:$C$5,$E$3,$E$4,$E$5,B166) -> 5.997612623 | D166: 1.512149258 | E166: =ThreePosition_Basic2($E$3,$E$5,$B$3:$C$3,$B$5:$C$5,B166,C166) -> 373.5604663 | F166: -222.8215587 | G166: 291.5959157 | H166: 48.4881417 | I166: =ThreePosition_Basic2($E$3,$E$5,$B$3:$C$3,$B$5:$C$5,B166,D166) -> -65.68693933 | J166: -160.6887535 | K166: -147.6514899 | L166: 110.6209469
A167: 79.5 | B167: 1.387536755 | C167: =Burmester($B$3:$C$3,$B$4:$C$4,$B$5:$C$5,$E$3,$E$4,$E$5,B167) -> 6.00135525 | D167: 1.523934974 | E167: =ThreePosition_Basic2($E$3,$E$5,$B$3:$C$3,$B$5:$C$5,B167,C167) -> 372.4893878 | F167: -221.7973582 | G167: 292.1339912 | H167: 48.43957287 | I167: =ThreePosition_Basic2($E$3,$E$5,$B$3:$C$3,$B$5:$C$5,B167,D167) -> -66.05186897 | J167: -161.284968 | K167: -146.4072656 | L167: 108.9519631
A168: 80 | B168: 1.396263402 | C168: =Burmester($B$3:$C$3,$B$4:$C$4,$B$5:$C$5,$E$3,$E$4,$E$5,B168) -> 6.005101477 | D168: 1.535741493 | E168: =ThreePosition_Basic2($E$3,$E$5,$B$3:$C$3,$B$5:$C$5,B168,C168) -> 371.4334904 | F168: -220.7803289 | G168: 292.6704515 | H168: 48.39503035 | I168: =ThreePosition_Basic2($E$3,$E$5,$B$3:$C$3,$B$5:$C$5,B168,D168) -> -66.41015695 | J168: -161.8863231 | K168: -145.1731958 | L168: 107.2890362
A169: 80.5 | B169: 1.404990048 | C169: =Burmester($B$3:$C$3,$B$4:$C$4,$B$5:$C$5,$E$3,$E$4,$E$5,B169) -> 6.00885157 | D169: 1.547568782 | E169: =ThreePosition_Basic2($E$3,$E$5,$B$3:$C$3,$B$5:$C$5,B169,C169) -> 370.3924637 | F169: -219.7702586 | G169: 293.2053075 | H169: 48.35451214 | I169: =ThreePosition_Basic2($E$3,$E$5,$B$3:$C$3,$B$5:$C$5,B169,D169) -> -66.76176906 | J169: -162.4927956 | K169: -143.9489252 | L169: 105.6319751
A170: 81 | B170: 1.413716694 | C170: =Burmester($B$3:$C$3,$B$4:$C$4,$B$5:$C$5,$E$3,$E$4,$E$5,B170) -> 6.012605795 | D170: 1.559416809 | E170: =ThreePosition_Basic2($E$3,$E$5,$B$3:$C$3,$B$5:$C$5,B170,C170) -> 369.3660054 | F170: -218.7669399 | G170: 293.7385704 | H170: 48.31801668 | I170: =ThreePosition_Basic2($E$3,$E$5,$B$3:$C$3,$B$5:$C$5,B170,D170) -> -67.10667059 | J170: -163.1043622 | K170: -142.7341055 | L170: 103.9805944
A171: 81.5 | B171: 1.42244334 | C171: =Burmester($B$3:$C$3,$B$4:$C$4,$B$5:$C$5,$E$3,$E$4,$E$5,B171) -> 6.016364418 | D171: 1.571285544 | E171: =ThreePosition_Basic2($E$3,$E$5,$B$3:$C$3,$B$5:$C$5,B171,C171) -> 368.3538204 | F171: -217.7701701 | G171: 294.270251 | H171: 48.28554287 | I171: =ThreePosition_Basic2($E$3,$E$5,$B$3:$C$3,$B$5:$C$5,B171,D171) -> -67.44482628 | J171: -163.7209991 | K171: -141.5283957 | L171: 102.3347138
A172: 82 | B172: 1.431169987 | C172: =Burmester($B$3:$C$3,$B$4:$C$4,$B$5:$C$5,$E$3,$E$4,$E$5,B172) -> 6.020127705 | D172: 1.583174958 | E172: =ThreePosition_Basic2($E$3,$E$5,$B$3:$C$3,$B$5:$C$5,B172,C172) -> 367.3556211 | F172: -216.7797507 | G172: 294.80036 | H172: 48.25709006 | I172: =ThreePosition_Basic2($E$3,$E$5,$B$3:$C$3,$B$5:$C$5,B172,D172) -> -67.77620034 | J172: -164.3426825 | K172: -140.3314614 | L172: 100.6941582
A173: 82.5 | B173: 1.439896633 | C173: =Burmester($B$3:$C$3,$B$4:$C$4,$B$5:$C$5,$E$3,$E$4,$E$5,B173) -> 6.023895921 | D173: 1.595085023 | E173: =ThreePosition_Basic2($E$3,$E$5,$B$3:$C$3,$B$5:$C$5,B173,C173) -> 366.3711268 | F173: -215.7954877 | G173: 295.3289081 | H173: 48.23265808 | I173: =ThreePosition_Basic2($E$3,$E$5,$B$3:$C$3,$B$5:$C$5,B173,D173) -> -68.10075644 | J173: -164.9693882 | K173: -139.1429752 | L173: 99.05875765
A174: 83 | B174: 1.448623279 | C174: =Burmester($B$3:$C$3,$B$4:$C$4,$B$5:$C$5,$E$3,$E$4,$E$5,B174) -> 6.027669332 | D174: 1.607015714 | E174: =ThreePosition_Basic2($E$3,$E$5,$B$3:$C$3,$B$5:$C$5,B174,C174) -> 365.4000637 | F174: -214.8171914 | G174: 295.8559057 | H174: 48.21224721 | I174: =ThreePosition_Basic2($E$3,$E$5,$B$3:$C$3,$B$5:$C$5,B174,D174) -> -68.4184577 | J174: -165.6010915 | K174: -137.9626157 | L174: 97.42834709
A175: 83.5 | B175: 1.457349925 | C175: =Burmester($B$3:$C$3,$B$4:$C$4,$B$5:$C$5,$E$3,$E$4,$E$5,B175) -> 6.031448202 | D175: 1.618967004 | E175: =ThreePosition_Basic2($E$3,$E$5,$B$3:$C$3,$B$5:$C$5,B175,C175) -> 364.4421644 | F175: -213.8446759 | G175: 296.3813632 | H175: 48.19585822 | I175: =ThreePosition_Basic2($E$3,$E$5,$B$3:$C$3,$B$5:$C$5,B175,D175) -> -68.72926671 | J175: -166.2377678 | K175: -136.7900679 | L175: 95.80276625
A176: 84 | B176: 1.466076572 | C176: =Burmester($B$3:$C$3,$B$4:$C$4,$B$5:$C$5,$E$3,$E$4,$E$5,B176) -> 6.035232799 | D176: 1.630938871 | E176: =ThreePosition_Basic2($E$3,$E$5,$B$3:$C$3,$B$5:$C$5,B176,C176) -> 363.4971681 | F176: -212.8777592 | G176: 296.9052908 | H176: 48.18349231 | I176: =ThreePosition_Basic2($E$3,$E$5,$B$3:$C$3,$B$5:$C$5,B176,D176) -> -69.03314551 | J176: -166.8793919 | K176: -135.6250227 | L176: 94.18185953
A177: 84.5 | B177: 1.474803218 | C177: =Burmester($B$3:$C$3,$B$4:$C$4,$B$5:$C$5,$E$3,$E$4,$E$5,B177) -> 6.039023387 | D177: 1.642931292 | E177: =ThreePosition_Basic2($E$3,$E$5,$B$3:$C$3,$B$5:$C$5,B177,C177) -> 362.56482 | F177: -211.9162631 | G177: 297.4276986 | H177: 48.17515118 | I177: =ThreePosition_Basic2($E$3,$E$5,$B$3:$C$3,$B$5:$C$5,B177,D177) -> -69.33005555 | J177: -167.5259384 | K177: -134.467177 | L177: 92.56547591
A178: 85 | B178: 1.483529864 | C178: =Burmester($B$3:$C$3,$B$4:$C$4,$B$5:$C$5,$E$3,$E$4,$E$5,B178) -> 6.042820232 | D178: 1.654944244 | E178: =ThreePosition_Basic2($E$3,$E$5,$B$3:$C$3,$B$5:$C$5,B178,C178) -> 361.6448716 | F178: -210.9600131 | G178: 297.9485964 | H178: 48.17083699 | I178: =ThreePosition_Basic2($E$3,$E$5,$B$3:$C$3,$B$5:$C$5,B178,D178) -> -69.61995778 | J178: -168.1773813 | K178: -133.3162329 | L178: 90.9534688
A179: 85.5 | B179: 1.49225651 | C179: =Burmester($B$3:$C$3,$B$4:$C$4,$B$5:$C$5,$E$3,$E$4,$E$5,B179) -> 6.0466236 | D179: 1.666977707 | E179: =ThreePosition_Basic2($E$3,$E$5,$B$3:$C$3,$B$5:$C$5,B179,C179) -> 360.7370798 | F179: -210.0088382 | G179: 298.467994 | H179: 48.17055238 | I179: =ThreePosition_Basic2($E$3,$E$5,$B$3:$C$3,$B$5:$C$5,B179,D179) -> -69.90281256 | J179: -168.8336945 | K179: -132.1718984 | L179: 89.345696
A180: 86 | B180: 1.500983157 | C180: =Burmester($B$3:$C$3,$B$4:$C$4,$B$5:$C$5,$E$3,$E$4,$E$5,B180) -> 6.050433758 | D180: 1.679031662 | E180: =ThreePosition_Basic2($E$3,$E$5,$B$3:$C$3,$B$5:$C$5,B180,C180) -> 359.8412075 | F180: -209.0625706 | G180: 298.9859009 | H180: 48.17430045 | I180: =ThreePosition_Basic2($E$3,$E$5,$B$3:$C$3,$B$5:$C$5,B180,D180) -> -70.17857969 | J180: -169.4948515 | K180: -131.0338862 | L180: 87.74201953
A181: 86.5 | B181: 1.509709803 | C181: =Burmester($B$3:$C$3,$B$4:$C$4,$B$5:$C$5,$E$3,$E$4,$E$5,B181) -> 6.054250973 | D181: 1.69110609 | E181: =ThreePosition_Basic2($E$3,$E$5,$B$3:$C$3,$B$5:$C$5,B181,C181) -> 358.9570226 | F181: -208.1210459 | G181: 299.5023266 | H181: 48.18208478 | I181: =ThreePosition_Basic2($E$3,$E$5,$B$3:$C$3,$B$5:$C$5,B181,D181) -> -70.44721843 | J181: -170.1608251 | K181: -129.9019145 | L181: 86.14230558
A182: 87 | B182: 1.518436449 | C182: =Burmester($B$3:$C$3,$B$4:$C$4,$B$5:$C$5,$E$3,$E$4,$E$5,B182) -> 6.05807551 | D182: 1.703200973 | E182: =ThreePosition_Basic2($E$3,$E$5,$B$3:$C$3,$B$5:$C$5,B182,C182) -> 358.0842988 | F182: -207.1841031 | G182: 300.01728 | H182: 48.19390945 | I182: =ThreePosition_Basic2($E$3,$E$5,$B$3:$C$3,$B$5:$C$5,B182,D182) -> -70.70868748 | J182: -170.8315881 | K182: -128.7757063 | L182: 84.54642441
A183: 87.5 | B183: 1.527163095 | C183: =Burmester($B$3:$C$3,$B$4:$C$4,$B$5:$C$5,$E$3,$E$4,$E$5,B183) -> 6.061907638 | D183: 1.715316293 | E183: =ThreePosition_Basic2($E$3,$E$5,$B$3:$C$3,$B$5:$C$5,B183,C183) -> 357.2228146 | F183: -206.2515838 | G183: 300.5307704 | H183: 48.209779 | I183: =ThreePosition_Basic2($E$3,$E$5,$B$3:$C$3,$B$5:$C$5,B183,D183) -> -70.96294497 | J183: -171.5071126 | K183: -127.6549892 | L183: 82.95425024
A184: 88 | B184: 1.535889742 | C184: =Burmester($B$3:$C$3,$B$4:$C$4,$B$5:$C$5,$E$3,$E$4,$E$5,B184) -> 6.065747624 | D184: 1.727452035 | E184: =ThreePosition_Basic2($E$3,$E$5,$B$3:$C$3,$B$5:$C$5,B184,C184) -> 356.3723535 | F184: -205.3233329 | G184: 301.0428064 | H184: 48.22969844 | I184: =ThreePosition_Basic2($E$3,$E$5,$B$3:$C$3,$B$5:$C$5,B184,D184) -> -71.20994846 | J184: -172.1873702 | K184: -126.5394955 | L184: 81.36566122
A185: 88.5 | B185: 1.544616388 | C185: =Burmester($B$3:$C$3,$B$4:$C$4,$B$5:$C$5,$E$3,$E$4,$E$5,B185) -> 6.069595737 | D185: 1.739608181 | E185: =ThreePosition_Basic2($E$3,$E$5,$B$3:$C$3,$B$5:$C$5,B185,C185) -> 355.5327038 | F185: -204.3991981 | G185: 301.5533967 | H185: 48.25367328 | I185: =ThreePosition_Basic2($E$3,$E$5,$B$3:$C$3,$B$5:$C$5,B185,D185) -> -71.44965499 | J185: -172.8723321 | K185: -125.4289621 | L185: 79.78053926
A186: 89 | B186: 1.553343034 | C186: =Burmester($B$3:$C$3,$B$4:$C$4,$B$5:$C$5,$E$3,$E$4,$E$5,B186) -> 6.073452245 | D186: 1.751784719 | E186: =ThreePosition_Basic2($E$3,$E$5,$B$3:$C$3,$B$5:$C$5,B186,C186) -> 354.7036585 | F186: -203.4790298 | G186: 302.0625496 | H186: 48.28170952 | I186: =ThreePosition_Basic2($E$3,$E$5,$B$3:$C$3,$B$5:$C$5,B186,D186) -> -71.68202099 | J186: -173.5619692 | K186: -124.3231299 | L186: 78.19877007
A187: 89.5 | B187: 1.562069681 | C187: =Burmester($B$3:$C$3,$B$4:$C$4,$B$5:$C$5,$E$3,$E$4,$E$5,B187) -> 6.077317418 | D187: 1.763981632 | E187: =ThreePosition_Basic2($E$3,$E$5,$B$3:$C$3,$B$5:$C$5,B187,C187) -> 353.8850152 | F187: -202.562681 | G187: 302.5702733 | H187: 48.31381362 | I187: =ThreePosition_Basic2($E$3,$E$5,$B$3:$C$3,$B$5:$C$5,B187,D187) -> -71.90700239 | J187: -174.2562516 | K187: -123.2217443 | L187: 76.62024298
A188: 90 | B188: 1.570796327 | C188: =Burmester($B$3:$C$3,$B$4:$C$4,$B$5:$C$5,$E$3,$E$4,$E$5,B188) -> 6.081191526 | D188: 1.776198906 | E188: =ThreePosition_Basic2($E$3,$E$5,$B$3:$C$3,$B$5:$C$5,B188,C188) -> 353.0765758 | F188: -201.6500075 | G188: 303.0765758 | H188: 48.34999255 | I188: =ThreePosition_Basic2($E$3,$E$5,$B$3:$C$3,$B$5:$C$5,B188,D188) -> -72.12455452 | J188: -174.9551491 | K188: -122.1245545 | L188: 75.04485094
A189: 90.5 | B189: 1.579522973 | C189: =Burmester($B$3:$C$3,$B$4:$C$4,$B$5:$C$5,$E$3,$E$4,$E$5,B189) -> 6.085074839 | D189: 1.788436529 | E189: =ThreePosition_Basic2($E$3,$E$5,$B$3:$C$3,$B$5:$C$5,B189,C189) -> 352.2781463 | F189: -200.7408673 | G189: 303.5814647 | H189: 48.39025376 | I189: =ThreePosition_Basic2($E$3,$E$5,$B$3:$C$3,$B$5:$C$5,B189,D189) -> -72.33463218 | J189: -175.6586306 | K189: -121.0313138 | L189: 73.47249042
A190: 91 | B190: 1.588249619 | C190: =Burmester($B$3:$C$3,$B$4:$C$4,$B$5:$C$5,$E$3,$E$4,$E$5,B190) -> 6.088967629 | D190: 1.800694486 | E190: =ThreePosition_Basic2($E$3,$E$5,$B$3:$C$3,$B$5:$C$5,B190,C190) -> 351.489537 | F190: -199.8351211 | G190: 304.0849476 | H190: 48.43460518 | I190: =ThreePosition_Basic2($E$3,$E$5,$B$3:$C$3,$B$5:$C$5,B190,D190) -> -72.53718962 | J190: -176.366665 | K190: -119.9417791 | L190: 71.90306136
A191: 91.5 | B191: 1.596976266 | C191: =Burmester($B$3:$C$3,$B$4:$C$4,$B$5:$C$5,$E$3,$E$4,$E$5,B191) -> 6.092870168 | D191: 1.812972765 | E191: =ThreePosition_Basic2($E$3,$E$5,$B$3:$C$3,$B$5:$C$5,B191,C191) -> 350.7105622 | F191: -198.9326319 | G191: 304.5870316 | H191: 48.48305524 | I191: =ThreePosition_Basic2($E$3,$E$5,$B$3:$C$3,$B$5:$C$5,B191,D191) -> -72.73218054 | J191: -177.07922 | K191: -118.8557112 | L191: 70.3364671
A192: 92 | B192: 1.605702912 | C192: =Burmester($B$3:$C$3,$B$4:$C$4,$B$5:$C$5,$E$3,$E$4,$E$5,B192) -> 6.096782728 | D192: 1.825271354 | E192: =ThreePosition_Basic2($E$3,$E$5,$B$3:$C$3,$B$5:$C$5,B192,C192) -> 349.94104 | F192: -198.0332646 | G192: 305.0877238 | H192: 48.53561287 | I192: =ThreePosition_Basic2($E$3,$E$5,$B$3:$C$3,$B$5:$C$5,B192,D192) -> -72.9195581 | J192: -177.7962631 | K192: -117.7728743 | L192: 68.77261435
A193: 92.5 | B193: 1.614429558 | C193: =Burmester($B$3:$C$3,$B$4:$C$4,$B$5:$C$5,$E$3,$E$4,$E$5,B193) -> 6.100705585 | D193: 1.837590239 | E193: =ThreePosition_Basic2($E$3,$E$5,$B$3:$C$3,$B$5:$C$5,B193,C193) -> 349.1807922 | F193: -197.1368868 | G193: 305.5870309 | H193: 48.59228747 | I193: =ThreePosition_Basic2($E$3,$E$5,$B$3:$C$3,$B$5:$C$5,B193,D193) -> -73.09927492 | J193: -178.5177611 | K193: -116.6930363 | L193: 67.21141309
A194: 93 | B194: 1.623156204 | C194: =Burmester($B$3:$C$3,$B$4:$C$4,$B$5:$C$5,$E$3,$E$4,$E$5,B194) -> 6.104639012 | D194: 1.849929408 | E194: =ThreePosition_Basic2($E$3,$E$5,$B$3:$C$3,$B$5:$C$5,B194,C194) -> 348.4296443 | F194: -196.2433677 | G194: 306.0849593 | H194: 48.65308897 | I194: =ThreePosition_Basic2($E$3,$E$5,$B$3:$C$3,$B$5:$C$5,B194,D194) -> -73.27128309 | J194: -179.2436801 | K194: -115.6159681 | L194: 65.65277657
A195: 93.5 | B195: 1.631882851 | C195: =Burmester($B$3:$C$3,$B$4:$C$4,$B$5:$C$5,$E$3,$E$4,$E$5,B195) -> 6.108583285 | D195: 1.862288849 | E195: =ThreePosition_Basic2($E$3,$E$5,$B$3:$C$3,$B$5:$C$5,B195,C195) -> 347.6874254 | F195: -195.3525789 | G195: 306.5815153 | H195: 48.71802775 | I195: =ThreePosition_Basic2($E$3,$E$5,$B$3:$C$3,$B$5:$C$5,B195,D195) -> -73.43553417 | J195: -179.9739855 | K195: -114.5414442 | L195: 64.09662119
A196: 94 | B196: 1.640609497 | C196: =Burmester($B$3:$C$3,$B$4:$C$4,$B$5:$C$5,$E$3,$E$4,$E$5,B196) -> 6.112538681 | D196: 1.87466855 | E196: =ThreePosition_Basic2($E$3,$E$5,$B$3:$C$3,$B$5:$C$5,B196,C196) -> 346.9539678 | F196: -194.4643939 | G196: 307.0767049 | H196: 48.78711473 | I196: =ThreePosition_Basic2($E$3,$E$5,$B$3:$C$3,$B$5:$C$5,B196,D196) -> -73.59197921 | J196: -180.7086421 | K196: -113.4692421 | L196: 62.54286655
A197: 94.5 | B197: 1.649336143 | C197: =Burmester($B$3:$C$3,$B$4:$C$4,$B$5:$C$5,$E$3,$E$4,$E$5,B197) -> 6.116505478 | D197: 1.887068498 | E197: =ThreePosition_Basic2($E$3,$E$5,$B$3:$C$3,$B$5:$C$5,B197,C197) -> 346.2291073 | F197: -193.5786879 | G197: 307.5705335 | H197: 48.86036129 | I197: =ThreePosition_Basic2($E$3,$E$5,$B$3:$C$3,$B$5:$C$5,B197,D197) -> -73.74056873 | J197: -181.4476139 | K197: -112.3991425 | L197: 60.99143531
A198: 95 | B198: 1.658062789 | C198: =Burmester($B$3:$C$3,$B$4:$C$4,$B$5:$C$5,$E$3,$E$4,$E$5,B198) -> 6.120483954 | D198: 1.89948868 | E198: =ThreePosition_Basic2($E$3,$E$5,$B$3:$C$3,$B$5:$C$5,B198,C198) -> 345.5126828 | F198: -192.695338 | G198: 308.0630067 | H198: 48.93777935 | I198: =ThreePosition_Basic2($E$3,$E$5,$B$3:$C$3,$B$5:$C$5,B198,D198) -> -73.88125274 | J198: -182.1908642 | K198: -111.3309288 | L198: 59.44225322
A199: 95.5 | B199: 1.666789436 | C199: =Burmester($B$3:$C$3,$B$4:$C$4,$B$5:$C$5,$E$3,$E$4,$E$5,B199) -> 6.124474389 | D199: 1.911929085 | E199: =ThreePosition_Basic2($E$3,$E$5,$B$3:$C$3,$B$5:$C$5,B199,C199) -> 344.8045365 | F199: -191.8142233 | G199: 308.5541295 | H199: 49.0193813 | I199: =ThreePosition_Basic2($E$3,$E$5,$B$3:$C$3,$B$5:$C$5,B199,D199) -> -74.01398076 | J199: -182.9383556 | K199: -110.2643877 | L199: 57.89524902
A200: 96 | B200: 1.675516082 | C200: =Burmester($B$3:$C$3,$B$4:$C$4,$B$5:$C$5,$E$3,$E$4,$E$5,B200) -> 6.128477064 | D200: 1.924389699 | E200: =ThreePosition_Basic2($E$3,$E$5,$B$3:$C$3,$B$5:$C$5,B200,C200) -> 344.1045133 | F200: -190.9352244 | G200: 309.0439066 | H200: 49.10518003 | I200: =ThreePosition_Basic2($E$3,$E$5,$B$3:$C$3,$B$5:$C$5,B200,D200) -> -74.13870181 | J200: -183.69005 | K200: -109.1993085 | L200: 56.35035446
A201: 96.5 | B201: =A201*PI()/180 -> 1.684242728 | C201: =Burmester($B$3:$C$3,$B$4:$C$4,$B$5:$C$5,$E$3,$E$4,$E$5,B201) -> 6.132492262 | D201: 1.936870508 | E201: =ThreePosition_Basic2($E$3,$E$5,$B$3:$C$3,$B$5:$C$5,B201,C201) -> 343.4124612 | F201: -190.0582235 | G201: 309.5323426 | H201: 49.19518896 | I201: =ThreePosition_Basic2($E$3,$E$5,$B$3:$C$3,$B$5:$C$5,B201,D201) -> -74.25536443 | J201: -184.4459082 | K201: -108.1354831 | L201: 54.80750421
A202: 97 | B202: 1.692969374 | C202: =Burmester($B$3:$C$3,$B$4:$C$4,$B$5:$C$5,$E$3,$E$4,$E$5,B202) -> 6.136520265 | D202: 1.949371498 | E202: =ThreePosition_Basic2($E$3,$E$5,$B$3:$C$3,$B$5:$C$5,B202,C202) -> 342.7282312 | F202: -189.1831045 | G202: 310.0194415 | H202: 49.28942198 | I202: =ThreePosition_Basic2($E$3,$E$5,$B$3:$C$3,$B$5:$C$5,B202,D202) -> -74.36391668 | J202: -185.2058906 | K202: -107.0727064 | L202: 53.26663588
... 526 more rows

Sheet Analysis
M1: =PI()/180 -> 0.01745329252
A2: b2 | B2: -Z1 | D2: R1 | F2: -Z2 | H2: R2
A3: =A4*0.5 -> 273 | B3: =VLOOKUP(A3,Synthesis!$A$8:$L$728,5) -> -63.02029397 | C3: =VLOOKUP(A3,Synthesis!$A$8:$L$728,6) -> 185.6876656 | D3: =VLOOKUP($A$3,Synthesis!$A$8:$L$728,7) -> 195.0467248 | E3: =VLOOKUP($A$3,Synthesis!$A$8:$L$728,8) -> 230.309653 | F3: =VLOOKUP($A$3,Synthesis!$A$8:$L$728,9) -> 136.9654462 | G3: =VLOOKUP($A$3,Synthesis!$A$8:$L$728,10) -> -219.8637422 | H3: =VLOOKUP($A$3,Synthesis!$A$8:$L$728,11) -> 395.032465 | I3: =VLOOKUP($A$3,Synthesis!$A$8:$L$728,12) -> -175.2417547
A4: 546 | B4: 1 | S4: 50 | T4: 1
A5: =A6*0.5 -> 72 | B5: =VLOOKUP(A5,Synthesis!$A$8:$L$728,5) -> 390.3441403 | C5: =VLOOKUP(A5,Synthesis!$A$8:$L$728,6) -> -238.0451269 | D5: =VLOOKUP($A$5,Synthesis!$A$8:$L$728,7) -> 283.8868522 | E5: =VLOOKUP($A$5,Synthesis!$A$8:$L$728,8) -> 49.59306513 | F5: =VLOOKUP($A$5,Synthesis!$A$8:$L$728,9) -> -59.89849728 | G5: =VLOOKUP($A$5,Synthesis!$A$8:$L$728,10) -> -152.8940351 | H5: =VLOOKUP($A$5,Synthesis!$A$8:$L$728,11) -> -166.3557854 | I5: =VLOOKUP($A$5,Synthesis!$A$8:$L$728,12) -> 134.744157 | O5: f-pi()/2 | P5: =P6*180/PI()-90 -> 18.74663139 | T5: 0 | U5: =+S4 -> 50
A6: 144 | B6: 2 | M6: =360+M9 -> 554.811682 | O6: f | P6: =ATAN2(H12,I12) -> 1.897986768 | T6: 0 | U6: 0
D7: Selected Values | F7: Z | H7: R | K7: g3 | L7: =ACOS((L13^2+L9^2-L8^2)/(2*L9*L13)) -> 0.3179704859 | M7: =L7/D_R -> 18.21836685 | T7: =+S4 -> 50 | U7: 0
B8: -60.95365006 | F8: =IF($B$4=1,B3,F3) -> -63.02029397 | G8: =IF($B$4=1,C3,G3) -> 185.6876656 | H8: 195.0467248 | I8: 230.309653 | K8: c3 | L8: =SQRT(H13^2+I13^2) -> 164.2084527 | P8: =SQRT(O12^2+O12^2) -> 118.138698
F9: =IF($B$6=1,B5,F5) -> -59.89849728 | G9: =IF($B$6=1,C5,G5) -> -152.8940351 | H9: -166.3557854 | I9: 134.744157 | K9: b3 | L9: =SQRT(H12^2+I12^2) -> 196.0904551 | M9: =360+M10 -> 194.811682 | T9: 2
H10: X | I10: Y | K10: alpha | L10: =ATAN2(H14-H11,I14-I11) -> -2.883080035 | M10: =M11/D_R -> -165.188318 | O10: X | P10: Y | T10: =+T11-S4*SIN([1]Synthesis!E8) -> 75 | U10: =+U11+S4*COS([1]Synthesis!E8) -> 243.3012702
G11: A0 | H11: =H8 -> 195.0467248 | I11: =I8 -> 230.309653 | K11: a1 | L11: =SQRT((H11-H14)^2+(I11-I14)^2) -> 373.8242079 | M11: =ATAN2((H14-H11),(I14-I11)) -> -2.883080035 | N11: A0 | O11: =H11 -> 195.0467248 | P11: =I11 -> 230.309653 | T11: =+[1]Synthesis!B8 -> 100 | U11: =+[1]Synthesis!C8 -> 200
G12: A | H12: =F8 -> -63.02029397 | I12: =G8 -> 185.6876656 | K12: a2 | L12: =SQRT((H12-H11)^2+(I12-I11)^2) -> 261.8963687 | N12: A | O12: =O11+L12*COS(B17+L10) -> 83.53667448 | P12: =P11+L12*SIN(B17+L10) -> 467.2805724 | T12: =+T11+S4*COS([1]Synthesis!E8) -> 143.3012702 | U12: =+U11+S4*SIN([1]Synthesis!E8) -> 225
G13: B | H13: =F9 -> -59.89849728 | I13: =G9 -> -152.8940351 | K13: a3 | L13: =SQRT((H12-H13)^2+(I12-I13)^2) -> 338.5960922 | N13: B | O13: =O14+L14*COS(I17) -> 140.3481389 | P13: =P14+L14*SIN(I17) -> 133.4845701 | Q13: =O13 -> 140.3481389 | R13: =P13 -> 133.4845701
G14: B0 | H14: =H9 -> -166.3557854 | I14: =I9 -> 134.744157 | K14: a4 | L14: =SQRT((H13-H14)^2+(I13-I14)^2) -> 306.7065107 | M14: =ATAN2((H13-H14),(I13-I14)) -> -1.216321134 | N14: B0 | O14: =H14 -> -166.3557854 | P14: =I14 -> 134.744157 | Q14: =O15 -> 175.2250217 | R14: =P15 -> 293.9464627 | T14: 3
J15: q13 | M15: =M14/D_R -> -69.69006753 | N15: P | O15: =O12+L9*COS(J16+L7) -> 175.2250217 | P15: =P12+L9*SIN(J16+L7) -> 293.9464627 | Q15: =O12 -> 83.53667448 | R15: =P12 -> 467.2805724 | T15: =+T16-S4*SIN([1]Synthesis!E7) -> 200 | U15: =+U16+S4*COS([1]Synthesis!E7) -> 350
A16: q12(degrees) | B16: radians | C16: Xa | D16: Ya | E16: s | F16: f | G16: m | H16: y | I16: q14 | J16: =I17-G17 -> -7.685398892 | N16: C | O16: =O15+S4*COS(J21*PI()/180-P5*PI()/180-PI()) -> 167.2905668 | P16: =P15+S4*SIN(J21*PI()/180-P5*PI()/180-PI()) -> 343.3128929 | T16: =+[1]Synthesis!B7 -> 200 | U16: =+[1]Synthesis!C7 -> 300
A17: =MOD(A18*0.01,360) -> 115.2 | B17: =A17*PI()/180-$L$10 -> 4.893699334 | C17: =-L11+L12*COS(B17) -> -326.5994208 | D17: =L12*SIN(B17) -> -257.6034306 | E17: =SQRT(C17^2+D17^2) -> 415.9647931 | F17: =ATAN2(C17,D17) -> -2.473752727 | G17: =ACOS((L13^2+L14^2-E17^2)/(2*L13*L14)) -> 1.398106758 | H17: =ACOS((L14^2+E17^2-L13^2)/(2*L14*E17)) -> 0.9304593716 | I17: =F17-H17+L10 -> -6.287292134 | J17: =J16*180/PI() -> -440.3409204 | N17: E | O17: =O18+50*COS(J21*PI()/180-P5*PI()/180-PI()) -> 191.9737818 | P17: =P18+50*SIN(J21*PI()/180-P5*PI()/180-PI()) -> 347.2801204 | T17: =+T16+S4*COS([1]Synthesis!E7) -> 250 | U17: =+U16+S4*SIN([1]Synthesis!E7) -> 300
A18: 11520 | J18: =J17+360 -> -80.34092039 | N18: D | O18: =O15+25*COS(J21*PI()/180-P6-PI()) -> 199.9082368 | P18: =P15+25*SIN(J21*PI()/180-P6-PI()) -> 297.9136902
J19: =J18+360 -> 279.6590796 | N19: P | O19: =O15 -> 175.2250217 | P19: =P15 -> 293.9464627 | T19: 4
O20: =J21*PI()/180-P6-PI() -> 0.1593627864 | T20: =+T21-S4*SIN([1]Synthesis!E9) -> 343.3012702 | U20: =+U21+S4*COS([1]Synthesis!E9) -> 225
J21: =J19+L7*180/PI() -> 297.8774465 | N21: alpha234 | O21: =O20*180/PI() -> 9.130815075 | T21: =+[1]Synthesis!B9 -> 300 | U21: =+[1]Synthesis!C9 -> 200
T22: =+T21+S4*COS([1]Synthesis!E9) -> 325 | U22: =+U21+S4*SIN([1]Synthesis!E9) -> 156.6987298
M24: obstacle | N24: 120 | O24: 0
N25: 120 | O25: 200
N26: 270 | O26: 200
N27: 270 | O27: 0
